Period,Quarter,"Recipient Name",City,Province,Country,Title,Language,Genre,Date,"Final Value","Original Value",Type,Purpose,Comments
2016-2017,P4,"9317-3946 Qu�bec inc.",Montreal,Quebec,Canada,"Secret d'hiver",French,Drama,2016-01-06,0.00,80000.00,"Recoupable Advance",Mini-treaties,"Amended contract signed  01-MAY-15"
2016-2017,P1,"T�l�fiction Distribution et Marketing Inc.",Montreal,Quebec,Canada,"Journal d'Aur�lie Laflamme, Les pieds sur terre (Le)",French,Comedy,2016-04-01,383070.00,400500.00,"Recoupable Advance","Marketing Program","Amended contract signed  30-APR-15"
2016-2017,P1,"Hope of Glory Pictures Ltd.",Burnaby,"British Columbia",Canada,Numb,English,Thriller,2016-04-05,1195.00,1195.00,Contribution,"International Marketing Program",
2016-2017,P1,"Autumn Productions Inc.",Regina,Saskatchewan,Canada,"Sabbatical (The)",English,Comedy,2016-04-07,1500.00,1500.00,Contribution,"International Marketing Program",
2016-2017,P1,"8705399 Canada Inc.",Montreal,Quebec,Canada,"Turbo Kid",English,Action/Adventure,2016-04-07,1152.00,2000.00,Contribution,"International Marketing Program","Amended contract signed  10-AUG-15"
2016-2017,P1,"Film Noces Inc.",Montreal,Quebec,Canada,"Ego trip",French,Comedy,2016-04-11,1690581.00,1715000.00,"Recoupable Advance","Production Program","Amended contract signed  27-OCT-14"
2016-2017,P1,"La Bo�te � Fanny inc.",Montreal,Quebec,Canada,"Oh What a Wonderful Feeling",English,Drama,2016-04-13,1936.00,1936.00,Contribution,"International Marketing Program",
2016-2017,P1,"Dave and Ed Films Inc.","Lions Bay","British Columbia",Canada,Lavender,English,Thriller,2016-04-14,5000.00,5000.00,Contribution,"International Marketing Program",
2016-2017,P1,"Mongrel Media Inc.",Toronto,Ontario,Canada,Preggoland,English,Comedy,2016-04-14,61615.00,101640.00,"Recoupable Advance","Marketing Program","Amended contract signed  30-JUL-15"
2016-2017,P1,"Raven Banner Releasing Inc.",Toronto,Ontario,Canada,"Dark Stranger (The)",English,Horror,2016-04-18,76875.00,76875.00,"Recoupable Advance","Marketing Program",
2016-2017,P1,"Don't Talk to Irene Inc.",Hamilton,Ontario,Canada,"Don't Talk To Irene",English,Comedy,2016-04-18,375000.00,350000.00,Investment,"Production Program","Amended contract signed  10-DEC-15"
2016-2017,P1,"Second Chance Productions Inc.","West Vancouver","British Columbia",Canada,"Grand Unified Theory",English,Comedy,2016-04-18,1500.00,1500.00,Contribution,"International Marketing Program",
2016-2017,P1,"Bron Studios Inc.",Burnaby,"British Columbia",Canada,"Portfolio 2014-2015 Bron Studios Inc.",English,Action/Adventure,2016-04-19,21263.00,50000.00,"Recoupable Advance","Development Program","Amended contract signed  05-JAN-15"
2016-2017,P1,"Cin� Qua Non M�dia Inc.",Montreal,Quebec,Canada,"Mouvements - Louise Lecavalier",French,Documentary,2016-04-21,110000.00,110000.00,Investment,"Theatrical Documentary Program",
2016-2017,P1,"Remember Productions Inc.",Toronto,Ontario,Canada,Remember,English,Drama,2016-04-21,38822.00,40000.00,Contribution,"International Marketing Program","Amended contract signed  16-SEP-15"
2016-2017,P1,"Medium Density Fibreboard Films Inc.",Toronto,Ontario,Canada,Tower,English,Drama,2016-04-22,11813.00,10000.00,Contribution,"International Marketing Program","Amended contract signed  26-JUL-12"
2016-2017,P1,"Forum Films 2005 Inc.",Montreal,Quebec,Canada,"Portfolio 2012-2013 Forum Films 2005 Inc.",French,Comedy,2016-04-25,56273.00,60000.00,"Recoupable Advance","Development Program","Amended contract signed  23-JAN-13"
2016-2017,P1,"D Films Corporation",Toronto,Ontario,Canada,"Sleeping Giant",English,Drama,2016-04-25,239006.00,239006.00,"Recoupable Advance","Marketing Program",
2016-2017,P1,"Aiken Heart Films Inc.",Toronto,Ontario,Canada,"People Garden (The)",English,Mystery/Crime/Police,2016-04-27,5000.00,5000.00,Contribution,"International Marketing Program",
2016-2017,P1,"Waiting Room Films Inc.",Toronto,Ontario,Canada,"Waiting Room (The)",English,Drama,2016-04-27,1500.00,1500.00,Contribution,"International Marketing Program",
2016-2017,P1,"Films Christal, s.e.c.(Les), agissant par l'interm�diaire de son commandit�, Les Films Christal Inc",Montreal,Quebec,Canada,"Origine des esp�ces (L')",French,Drama,2016-04-28,44109.00,44109.00,"Recoupable Advance","Marketing Program",
2016-2017,P1,"TimeLapse Pictures Productions Inc.",Toronto,Ontario,Canada,"Waiting Room (The)",English,Drama,2016-05-02,8978.00,10000.00,Contribution,"International Marketing Program","Amended contract signed  11-AUG-15"
2016-2017,P1,"Films S�ville Inc. (Les) / Seville Pictures Inc.",Montreal,Quebec,Canada,Race,English,Drama,2016-05-04,900000.00,600000.00,"Recoupable Advance","Marketing Program","Amended contract signed  29-MAR-16"
2016-2017,P1,"Films S�ville Inc. (Les) / Seville Pictures Inc.",Montreal,Quebec,Canada,"Mauvaises herbes (Les)",French,Comedy,2016-05-05,1500.00,1500.00,Contribution,"International Marketing Program",
2016-2017,P1,"Mongrel Media Inc.",Toronto,Ontario,Canada,Natasha,English,Drama,2016-05-06,50201.00,50201.00,"Recoupable Advance","Marketing Program",
2016-2017,P1,"A71 Entertainment Inc.",Toronto,Ontario,Canada,"Rainbow Kid (The)",English,Drama,2016-05-09,37495.00,37495.00,"Recoupable Advance","Marketing Program",
2016-2017,P1,"Raven Banner Releasing Inc.",Toronto,Ontario,Canada,"How To Plan An Orgy In A Small Town",English,Comedy,2016-05-11,168750.00,168750.00,"Recoupable Advance","Marketing Program",
2016-2017,P1,"9204237 Canada Inc.",Brampton,Ontario,Canada,"Mean Dreams",English,Thriller,2016-05-11,40000.00,40000.00,Contribution,"International Marketing Program",
2016-2017,P1,"Item 7 Copro inc",Montreal,Quebec,Canada,"Fils de Jean (Le)",French,Drama,2016-05-12,25000.00,25000.00,"Recoupable Advance","Production Program",
2016-2017,P1,"Item 7 Copro inc",Montreal,Quebec,Canada,"Fils de Jean (Le)",French,Drama,2016-05-12,75000.00,75000.00,"Recoupable Advance",Mini-treaties,
2016-2017,P1,"2479529 Ontario Inc.",Toronto,Ontario,Canada,"Sadie's Last Day on Earth",English,Comedy,2016-05-13,208820.00,196000.00,"Investment, Recoupable Advance","Production Program","Amended contract signed  23-DEC-15"
2016-2017,P1,"27 Productions Limited",Toronto,Ontario,Canada,"""""""27""""""",English,Documentary,2016-05-17,237500.00,250000.00,Investment,"Production Program","Amended contract signed  02-MAR-07"
2016-2017,P1,"Infinity Features Development Inc.",Vancouver,"British Columbia",Canada,"Letter of the Law (The)",English,Thriller,2016-05-17,23114.00,28892.00,"Recoupable Advance","Development Program","Amended contract signed  16-OCT-07"
2016-2017,P1,"Irreverent Media Ltd.",Vancouver,"British Columbia",Canada,Sawchuk,English,"Historical Drama",2016-05-17,16000.00,20000.00,"Recoupable Advance","Development Program","Amended contract signed  31-AUG-06"
2016-2017,P1,"MAX FILMS (HTA) INC.",Montreal,Quebec,Canada,"HOCHELAGA, TERRE DES �MES",French,"Historical Drama",2016-05-19,150000.00,150000.00,"Recoupable Advance","Production Program",
2016-2017,P1,"9259-4654 Qu�bec inc.",Montreal,Quebec,Canada,"Maudite poutine",French,Drama,2016-05-20,115000.00,115000.00,"Recoupable Advance","Production Program",
2016-2017,P1,"Our House Films Canada Inc.",Toronto,Ontario,Canada,"Our House",English,Drama,2016-05-20,345000.00,345000.00,"Recoupable Advance","Production Program",
2016-2017,P1,"Max Films (TLB) Inc.",Montreal,Quebec,Canada,"TWO LOVERS AND A BEAR",English,Drama,2016-05-20,40000.00,40000.00,Contribution,"International Marketing Program",
2016-2017,P1,"BTB Blue Productions Ltd.","North Bay",Ontario,Canada,"Born To Be Blue",English,"Historical Drama",2016-05-25,1615843.00,1500000.00,Investment,"Production Program","Amended contract signed  26-SEP-14"
2016-2017,P1,"Majika Pictures Inc.",Saint-Lambert,Quebec,Canada,"Portfolio 2016-2017 Majika Pictures Inc.",English,Comedy,2016-05-26,15000.00,15000.00,"Recoupable Advance","Development Program",
2016-2017,P1,"Max Films (TLB) Inc.",Montreal,Quebec,Canada,"TWO LOVERS AND A BEAR",English,Drama,2016-05-26,3300000.00,3200000.00,Investment,"Production Program","Amended contract signed  11-MAR-15"
2016-2017,P1,"Dykon Films Inc.",Toronto,Ontario,Canada,Margarita,English,Drama,2016-05-31,16409.00,28168.00,"Recoupable Advance","Marketing Program","Amended contract signed  27-JUN-13"
2016-2017,P1,"Films 53/12 Inc.",Montreal,Quebec,Canada,"Portfolio 2016-2017 Films 53/12 Inc.",French,Drama,2016-05-31,20000.00,20000.00,"Recoupable Advance","Development Program",
2016-2017,P1,"Parce Que Films inc.",Montreal,Quebec,Canada,"Portfolio 2016-2017 Parce Que Films inc.",French,Comedy,2016-05-31,15000.00,15000.00,"Recoupable Advance","Development Program",
2016-2017,P1,"Room For Rent MB Inc.",Winnipeg,Manitoba,Canada,"Room For Rent",English,Comedy,2016-05-31,400000.00,400000.00,"Recoupable Advance","Production Program",
2016-2017,P1,"Attraction Distribution Internationale Inc. / Attraction International Distribution Inc.",Montreal,Quebec,Canada,"Nitro Rush",French,Action/Adventure,2016-06-01,3400.00,3400.00,Contribution,"International Marketing Program",
2016-2017,P1,"Eyesteelfilm Distribution Inc.",Montreal,Quebec,Canada,"Saver (The)",English,Drama,2016-06-02,19501.00,19501.00,"Recoupable Advance","Marketing Program",
2016-2017,P1,"The Space Between Productions Inc.",Oakville,Ontario,Canada,"Space Between (The)",English,Comedy,2016-06-02,5000.00,5000.00,Contribution,"International Marketing Program",
2016-2017,P1,"The Inspiring Grizzlies Inc.",Toronto,Ontario,Canada,"Grizzlies (The)",English,Drama,2016-06-03,2844000.00,2844000.00,Investment,"Production Program",
2016-2017,P1,"Storyline Entertainment Inc.",Toronto,Ontario,Canada,"League of Exotique Dancers",English,Documentary,2016-06-03,2700.00,2700.00,Contribution,"International Marketing Program",
2016-2017,P1,"Northwood Productions Inc.",Toronto,Ontario,Canada,"Grizzlies (The)",English,Drama,2016-06-06,0.00,500000.00,"Recoupable Advance","Production Program","Amended contract signed  02-MAR-16"
2016-2017,P1,"9215-8534 Qu�bec Inc. (Parallaxes)",Saint-Pierre,Quebec,Canada,"Portfolio 2016-2017 9215-8534 Qu�bec Inc. (Parallaxes)",French,Mystery/Crime/Police,2016-06-06,15000.00,15000.00,"Recoupable Advance","Development Program",
2016-2017,P1,"Bedbugs Films Inc.",Winnipeg,Manitoba,Canada,"Portfolio 2016-2017 Bedbugs Films Inc.",English,"Science fiction/Fantasy/Tale",2016-06-06,15000.00,15000.00,"Recoupable Advance","Development Program",
2016-2017,P1,"Geordie Sabbagh Productions Inc.",Toronto,Ontario,Canada,"Sunday Kind of Love (A)",English,"Romantic Comedy",2016-06-07,3437.00,3437.00,Contribution,"International Marketing Program",
2016-2017,P1,"9116-7502 Qu�bec Inc. (faisant affaires sous Lycaon Pictus)",Saint-Ours,Quebec,Canada,"Portfolio 2016-2017 9116-7502 Qu�bec Inc. (faisant affaires sous Lycaon Pictus)",French,Drama,2016-06-08,15000.00,15000.00,"Recoupable Advance","Development Program",
2016-2017,P1,"The Death and Life of John F. Donovan Inc.",Montreal,Quebec,Canada,"The Death and Life of John F. Donovan",English,Drama,2016-06-08,4000000.00,4000000.00,Investment,"Production Program",
2016-2017,P1,"The Death and Life of John F. Donovan Inc.",Montreal,Quebec,Canada,"Death and Life of John F. Donovan (The)",English,Drama,2016-06-09,0.00,794399.00,"Recoupable Advance","Production Program","Amended contract signed  07-MAR-16"
2016-2017,P1,"Dave and Ed Films Inc.","Lions Bay","British Columbia",Canada,Lavender,English,Thriller,2016-06-09,2500.00,2500.00,Contribution,"International Marketing Program",
2016-2017,P1,"Our House Films Canada Inc.",Toronto,Ontario,Canada,"Our House",English,Drama,2016-06-10,2300000.00,2300000.00,Investment,"Production Program",
2016-2017,P1,"Our House Films Canada Inc.",Toronto,Ontario,Canada,"Our House",English,Drama,2016-06-10,0.00,345000.00,"Recoupable Advance","Production Program","Amended contract signed  20-MAY-16"
2016-2017,P1,"Voyelles Films Productions inc.",Montreal,Quebec,Canada,"All you can eat Bouddha",French,Drama,2016-06-13,175000.00,175000.00,Investment,"Production Program",
2016-2017,P1,"Microscope inc.",Montreal,Quebec,Canada,Endorphine,French,Drama,2016-06-15,2064548.00,2100000.00,Investment,"Production Program","Amended contract signed  28-FEB-14"
2016-2017,P1,"9343679 Canada Inc.",Toronto,Ontario,Canada,"Great Great Great",English,Drama,2016-06-15,50000.00,50000.00,Investment,"Production Program",
2016-2017,P1,"Films S�ville Inc. (Les) / Seville Pictures Inc.",Montreal,Quebec,Canada,"Juste la fin du monde",French,Drama,2016-06-17,40000.00,40000.00,Contribution,"International Marketing Program",
2016-2017,P1,"9337-3447 Qu�bec Inc.",Montreal,Quebec,Canada,Origami,French,Drama,2016-06-20,500000.00,500000.00,Investment,"Production Program",
2016-2017,P1,"Productions BCBC2 Inc.",Outremont,Quebec,Canada,"Bon Cop Bad Cop 2",English,Comedy,2016-06-21,0.00,436128.00,"Recoupable Advance","Production Program","Amended contract signed  17-MAR-16"
2016-2017,P1,"Films IDL (Sac De Billes) inc.",Montreal,Quebec,Canada,"Un sac de billes",French,Drama,2016-06-21,300000.00,300000.00,"Investment, Recoupable Advance","Production Program",
2016-2017,P1,"Whizbang Films Distribution Inc.",Toronto,Ontario,Canada,Hellions,English,Thriller,2016-06-23,49331.00,73875.00,"Recoupable Advance","Marketing Program","Amended contract signed  28-SEP-15"
2016-2017,P1,"Productions Pimiento inc.",Montreal,Quebec,Canada,"L'ADN du ceviche",French,Documentary,2016-06-23,7500.00,7500.00,"Recoupable Advance","Marketing Program",
2016-2017,P1,"Unobstructed View Inc.",Toronto,Ontario,Canada,"Patch Town",English,"Science fiction/Fantasy/Tale",2016-06-23,36505.00,45338.00,"Recoupable Advance","Marketing Program","Amended contract signed  10-JUN-15"
2016-2017,P1,"Banana-Moon Sky Films Inc.",Toronto,Ontario,Canada,"Portfolio 2016-2017 Banana-Moon Sky Films Inc.",English,Comedy,2016-06-23,15000.00,15000.00,"Recoupable Advance","Development Program",
2016-2017,P1,"Festina Lente Productions Inc.",Chester,"Nova Scotia",Canada,"Portfolio 2016-2017 Festina Lente Productions Inc.",English,Comedy,2016-06-23,15000.00,15000.00,"Recoupable Advance","Development Program",
2016-2017,P1,"9199-8294 Qu�bec Inc.",Montreal,Quebec,Canada,"D�mons (Les)",French,Drama,2016-06-27,1450.00,1450.00,Contribution,"International Marketing Program",
2016-2017,P1,"Pacific Northwest Pictures Inc.",Vancouver,"British Columbia",Canada,"Legend of Barney Thomson (The)",English,Comedy,2016-06-27,97488.00,130129.00,"Recoupable Advance","Marketing Program","Amended contract signed  25-FEB-16"
2016-2017,P1,"Riverhead Films, Inc.","St. John's",Newfoundland/Labrad.,Canada,Riverhead,English,Drama,2016-06-27,121790.00,121790.00,"Investment, Recoupable Advance","Production Program",
2016-2017,P1,"Inner City Films Development Inc.",Toronto,Ontario,Canada,"Portfolio 2016-2017 Inner City Films Development Inc.",English,Drama,2016-06-28,15000.00,15000.00,"Recoupable Advance","Development Program",
2016-2017,P1,"OBJECTIF 9 INC.",Montreal,Quebec,Canada,"Portfolio 2016-2017 OBJECTIF 9 INC.",French,Drama,2016-06-28,15000.00,15000.00,"Recoupable Advance","Development Program",
2016-2017,P1,"Pope Productions Ltd.","St. John's",Newfoundland/Labrad.,Canada,"Portfolio 2016-2017 Pope Productions Ltd.",English,Drama,2016-06-28,15000.00,15000.00,"Recoupable Advance","Development Program",
2016-2017,P1,"Rock Island Productions Ltd.","St. John's",Newfoundland/Labrad.,Canada,"Portfolio 2016-2017 Rock Island Productions Ltd.",English,Drama,2016-06-28,15000.00,15000.00,"Recoupable Advance","Development Program",
2016-2017,P1,"Productions BCBC2 Inc.",Outremont,Quebec,Canada,"Bon Cop Bad Cop 2",English,Comedy,2016-06-29,3500000.00,3500000.00,"Recoupable Advance","Production Program",
2016-2017,P1,"A Media Inc.",Montreal,Quebec,Canada,"Portfolio 2016-2017 A Media Inc.",French,Drama,2016-06-29,15000.00,15000.00,"Recoupable Advance","Development Program",
2016-2017,P1,"Go Films L.P.R.S. inc.",Outremont,Quebec,Canada,"Portfolio 2016-2017 Go Films L.P.R.S. Inc.",French,Comedy,2016-06-29,45000.00,45000.00,"Recoupable Advance","Development Program",
2016-2017,P1,"Go Films L.P.R.S. inc.",Outremont,Quebec,Canada,"Portfolio 2016-2017 Go Films L.P.R.S. Inc.",French,"Science fiction/Fantasy/Tale",2016-06-29,95000.00,30000.00,"Recoupable Advance","Development Program",
2016-2017,P1,"Go Films L.P.R.S. inc.",Outremont,Quebec,Canada,"Portfolio 2016-2017 Go Films L.P.R.S. Inc.",French,Comedy,2016-06-29,65000.00,20000.00,"Recoupable Advance","Development Program",
2016-2017,P1,"Standing 8 Productions Inc.",Halifax,"Nova Scotia",Canada,"Portfolio 2016-2017 Standing 8 Productions Inc.",English,Action/Adventure,2016-06-29,15000.00,15000.00,"Recoupable Advance","Development Program",
2016-2017,P1,"Lyla Films Inc.",Montreal,Quebec,Canada,"Portfolio 2016-2017 Lyla Films Inc.",French,Comedy,2016-06-30,55210.00,55210.00,"Recoupable Advance","Development Program",
2016-2017,P1,"Lyla Films Inc.",Montreal,Quebec,Canada,"Portfolio 2016-2017 Lyla Films Inc.",French,Drama,2016-06-30,96750.00,41540.00,"Recoupable Advance","Development Program",
2016-2017,P1,"D Films Corporation",Toronto,Ontario,Canada,"Sleeping Giant",English,Drama,2016-06-30,295256.00,239006.00,"Recoupable Advance","Marketing Program","Amended contract signed  25-APR-16"
2016-2017,P2,"Boss� le film Inc.",Montreal,Quebec,Canada,"BO$$� INC.",French,Comedy,2016-07-05,1484662.00,1500000.00,Investment,"Production Program","Amended contract signed  03-JUN-11"
2016-2017,P2,"9204237 Canada Inc.",Brampton,Ontario,Canada,"Mean Dreams",English,Thriller,2016-07-05,392500.00,375000.00,Investment,"Production Program","Amended contract signed  11-SEP-15"
2016-2017,P2,"Alcina Pictures Ltd.",Toronto,Ontario,Canada,"HEVN (Revenge)",English,Drama,2016-07-07,25000.00,25000.00,"Recoupable Advance","Marketing Program",
2016-2017,P2,"Lady Hammond Entertainment Inc.",Dartmouth,"Nova Scotia",Canada,"Portfolio 2016-2017 Lady Hammond Entertainment Inc.",English,"Science fiction/Fantasy/Tale",2016-07-07,15000.00,15000.00,"Recoupable Advance","Development Program",
2016-2017,P2,"Mongrel Media Inc.",Toronto,Ontario,Canada,"Tempest Storm",English,Documentary,2016-07-07,21863.00,21863.00,"Recoupable Advance","Marketing Program",
2016-2017,P2,"Achromatic Media Inc.",Montreal,Quebec,Canada,"We're Still Together",English,Drama,2016-07-07,10000.00,10000.00,Contribution,"International Marketing Program",
2016-2017,P2,"La Bo�te � Fanny inc.",Montreal,Quebec,Canada,"Portfolio 2016-2017 La Bo�te � Fanny inc.",French,Drama,2016-07-08,25000.00,25000.00,"Recoupable Advance","Development Program",
2016-2017,P2,"9341-7541 Qu�bec Inc.",Montreal,Quebec,Canada,"ET AU PIRE ON SE MARIERA",French,Drama,2016-07-11,465000.00,465000.00,Investment,"Production Program",
2016-2017,P2,"9342-2830 Qu�bec Inc.",Longueuil,Quebec,Canada,"Petite fille qui aimait trop les allumettes (La)",French,Drama,2016-07-14,675000.00,675000.00,"Investment, Recoupable Advance","Production Program",
2016-2017,P2,"Joker Films Productions Inc.","North Vancouver","British Columbia",Canada,"Portfolio 2016-2017 Joker Films Productions Inc.",English,Comedy,2016-07-14,15000.00,15000.00,"Recoupable Advance","Development Program",
2016-2017,P2,"8705399 Canada Inc.",Montreal,Quebec,Canada,"Turbo Kid",English,"Science fiction/Fantasy/Tale",2016-07-14,1500.00,1500.00,Contribution,"International Marketing Program",
2016-2017,P2,"SPF 2016 Productions Inc.",Toronto,Ontario,Canada,Clara,English,"Science fiction/Fantasy/Tale",2016-07-15,995000.00,995000.00,Investment,"Production Program",
2016-2017,P2,"Melenny Productions Inc.",Montreal,Quebec,Canada,"Portfolio 2016-2017 Melenny Productions Inc.",French,Drama,2016-07-15,45000.00,45000.00,"Recoupable Advance","Development Program",
2016-2017,P2,"Films S�ville Inc. (Les) / Seville Pictures Inc.",Montreal,Quebec,Canada,"Journal d'un vieil homme (Le)",French,Drama,2016-07-18,91582.00,101383.00,"Recoupable Advance","Marketing Program","Amended contract signed  10-SEP-15"
2016-2017,P2,"2412658 Ontario Inc.",Toronto,Ontario,Canada,"Portfolio 2016-2017 2412658 Ontario Inc.",English,Thriller,2016-07-18,15000.00,15000.00,"Recoupable Advance","Development Program",
2016-2017,P2,"3 Legged Dog Films Ltd.",Toronto,Ontario,Canada,"Portfolio 2016-2017 3 Legged Dog Films Ltd.",English,Thriller,2016-07-19,15000.00,15000.00,"Recoupable Advance","Development Program",
2016-2017,P2,"The Gate 3D Inc.",Toronto,Ontario,Canada,"Gate 3D (The)",English,Action/Adventure,2016-07-20,65283.00,150000.00,"Recoupable Advance","Development Program","Amended contract signed  17-JAN-11"
2016-2017,P2,"Funfilm Distribution Inc.",Montreal,Quebec,Canada,"D�mons (Les)",French,Drama,2016-07-21,46201.00,47000.00,"Recoupable Advance","Marketing Program","Amended contract signed  11-SEP-15"
2016-2017,P2,"Fire Song Films Inc.",Toronto,Ontario,Canada,"Fire Song",English,Drama,2016-07-21,29906.00,29906.00,"Recoupable Advance","Marketing Program",
2016-2017,P2,"The Film Farm Inc.",Toronto,Ontario,Canada,"Last Letter From Your Lover (The)",English,Drama,2016-07-22,300000.00,300000.00,"Recoupable Advance","Production Program",
2016-2017,P2,"A71 Entertainment Inc.",Toronto,Ontario,Canada,"Waiting Room (The)",English,Drama,2016-07-22,38115.00,38115.00,"Recoupable Advance","Marketing Program",
2016-2017,P2,"Elevation Pictures Corp.",Toronto,Ontario,Canada,"Hyena Road",English,Drama,2016-07-25,1708287.00,1788892.00,"Recoupable Advance","Marketing Program","Amended contract signed  21-OCT-15"
2016-2017,P2,"Entertainment One Films Canada Inc.",Montreal,Quebec,Canada,"Born To Be Blue",English,"Historical Drama",2016-07-26,246151.00,236250.00,"Recoupable Advance","Marketing Program","Amended contract signed  14-MAR-16"
2016-2017,P2,"Level Film Inc.",Toronto,Ontario,Canada,"Edge of Winter",English,Drama,2016-07-26,75694.00,75694.00,"Recoupable Advance","Marketing Program",
2016-2017,P2,"N5 Pictures Inc.",Mississauga,Ontario,Canada,Gear,English,Mystery/Crime/Police,2016-07-26,50000.00,50000.00,Investment,"Production Program",
2016-2017,P2,"David Gross Productions Inc.",Toronto,Ontario,Canada,"Portfolio 2016-2017 David Gross Productions Inc.",English,"Romantic Comedy",2016-07-26,100000.00,100000.00,"Recoupable Advance","Development Program",
2016-2017,P2,"Search Engine Films Inc.",Toronto,Ontario,Canada,"Coconut Hero",English,Comedy,2016-07-27,27051.00,31969.00,"Recoupable Advance","Marketing Program","Amended contract signed  04-MAR-16"
2016-2017,P2,"2350021 Ontario Inc.",Toronto,Ontario,Canada,"Portfolio 2016-2017 2350021 Ontario Inc.",English,Action/Adventure,2016-07-28,15000.00,15000.00,"Recoupable Advance","Development Program",
2016-2017,P2,"Lumanity Productions Inc.",Toronto,Ontario,Canada,"Portfolio 2016-2017 Lumanity Productions Inc.",English,Thriller,2016-07-29,15000.00,15000.00,"Recoupable Advance","Development Program",
2016-2017,P2,"New Real Films Inc.",Toronto,Ontario,Canada,"Portfolio 2016-2017 New Real Films Inc.",English,Drama,2016-07-29,15000.00,15000.00,"Recoupable Advance","Development Program",
2016-2017,P2,"New Real Films Inc.",Toronto,Ontario,Canada,"Portfolio 2016-2017 New Real Films Inc.",English,Drama,2016-07-29,30000.00,15000.00,"Recoupable Advance","Development Program",
2016-2017,P2,"WANGO Films Inc.",Toronto,Ontario,Canada,"Portfolio 2016-2017 WANGO Films Inc.",English,Thriller,2016-07-29,15000.00,15000.00,"Recoupable Advance","Development Program",
2016-2017,P2,"Film Noces Inc.",Montreal,Quebec,Canada,"DE P�RE EN FLIC 2",French,Comedy,2016-08-02,2800000.00,2800000.00,"Recoupable Advance","Production Program",
2016-2017,P2,"Canada Wild Productions Ltd.",Vancouver,"British Columbia",Canada,"Koneline:  Our Land Beautiful",English,Documentary,2016-08-02,50000.00,50000.00,"Recoupable Advance","Marketing Program",
2016-2017,P2,"October Gale Inc.",Toronto,Ontario,Canada,"October Gale",English,Drama,2016-08-02,1814621.00,1500000.00,Investment,"Production Program","Amended contract signed  16-MAY-14"
2016-2017,P2,"PUNK Films Inc.",Toronto,Ontario,Canada,"Porcupine Lake",English,Drama,2016-08-02,122500.00,122500.00,Investment,"Production Program",
2016-2017,P2,"Lumino Pictures Inc.",Toronto,Ontario,Canada,"Portfolio 2016-2017 Lumino Pictures Inc.",English,Horror,2016-08-02,15000.00,15000.00,"Recoupable Advance","Development Program",
2016-2017,P2,"PVP Animation III Inc.",Matane,Quebec,Canada,"Belle et S�bastien",French,Children,2016-08-03,30000.00,30000.00,"Recoupable Advance",Mini-treaties,
2016-2017,P2,"N5 Pictures Inc.",Mississauga,Ontario,Canada,"Portfolio 2016-2017 N5 Pictures Inc.",English,Action/Adventure,2016-08-03,15000.00,15000.00,"Recoupable Advance","Development Program",
2016-2017,P2,"9265-2775 Qu�bec inc.",Montreal,Quebec,Canada,"Affam�s (Les)",French,Horror,2016-08-04,1150000.00,1150000.00,Investment,"Production Program",
2016-2017,P2,"Independent Edge Films Inc.",Vancouver,"British Columbia",Canada,"Portfolio 2016-2017 Independent Edge Films Inc.",English,Drama,2016-08-04,25000.00,25000.00,"Recoupable Advance","Development Program",
2016-2017,P2,"Independent Edge Films Inc.",Vancouver,"British Columbia",Canada,"Portfolio 2016-2017 Independent Edge Films Inc.",English,Horror,2016-08-04,50000.00,25000.00,"Recoupable Advance","Development Program",
2016-2017,P2,"Association coop�rative de productions audio-visuelles",Montreal,Quebec,Canada,"Portfolio 2016-2017 Association coop�rative de productions audio-visuelles",French,Drama,2016-08-05,24000.00,24000.00,"Recoupable Advance","Development Program",
2016-2017,P2,"Association coop�rative de productions audio-visuelles",Montreal,Quebec,Canada,"Portfolio 2016-2017 Association coop�rative de productions audio-visuelles",French,Drama,2016-08-05,73000.00,34000.00,"Recoupable Advance","Development Program",
2016-2017,P2,"Association coop�rative de productions audio-visuelles",Montreal,Quebec,Canada,"Portfolio 2016-2017 Association coop�rative de productions audio-visuelles",French,Drama,2016-08-05,39000.00,15000.00,"Recoupable Advance","Development Program",
2016-2017,P2,"Association coop�rative de productions audio-visuelles",Montreal,Quebec,Canada,"Portfolio 2016-2017 Association coop�rative de productions audio-visuelles",French,Drama,2016-08-05,88000.00,15000.00,"Recoupable Advance","Development Program",
2016-2017,P2,"Association coop�rative de productions audio-visuelles",Montreal,Quebec,Canada,"Portfolio 2016-2017 Association coop�rative de productions audio-visuelles",French,Drama,2016-08-05,120000.00,32000.00,"Recoupable Advance","Development Program",
2016-2017,P2,"Autumn Productions Inc.",Regina,Saskatchewan,Canada,"Sabbatical (The)",English,Comedy,2016-08-08,1279.00,1500.00,Contribution,"International Marketing Program","Amended contract signed  07-APR-16"
2016-2017,P2,"Elevation Pictures Corp.",Toronto,Ontario,Canada,Room,English,Drama,2016-08-09,1856127.00,1518881.00,"Recoupable Advance","Marketing Program","Amended contract signed  24-NOV-15"
2016-2017,P2,"Strident Films, Inc.",Toronto,Ontario,Canada,"Portfolio 2013-2014 Strident Films, Inc.",English,Drama,2016-08-11,3360.00,35000.00,"Recoupable Advance","Development Program","Amended contract signed  11-JUL-13"
2016-2017,P2,"Gestion Id�acom International Inc. (9085-7525 Qu�bec Inc.) ",Montreal,Quebec,Canada,"Human + (a.k.a. Supers sens, supers pouvoirs)",French,Documentary,2016-08-12,6300.00,6300.00,"Recoupable Advance",Mini-treaties,
2016-2017,P2,"Motion 58 Entertainment Inc.",Vancouver,"British Columbia",Canada,"Portfolio 2016-2017 Motion 58 Entertainment Inc.",English,Comedy,2016-08-12,15000.00,15000.00,"Recoupable Advance","Development Program",
2016-2017,P2,"MAX FILMS (HTA) INC.",Montreal,Quebec,Canada,"HOCHELAGA, TERRE DES �MES",French,"Historical Drama",2016-08-15,650000.00,150000.00,"Recoupable Advance","Production Program","Amended contract signed  19-MAY-16"
2016-2017,P2,"Rhombus Media Inc.",Toronto,Ontario,Canada,"Portfolio 2016-2017 Rhombus Media Inc.",English,Drama,2016-08-16,112824.00,112824.00,"Recoupable Advance","Development Program",
2016-2017,P2,"Rhombus Media Inc.",Toronto,Ontario,Canada,"Portfolio 2016-2017 Rhombus Media Inc.",English,Drama,2016-08-16,138024.00,25200.00,"Recoupable Advance","Development Program",
2016-2017,P2,"Rhombus Media Inc.",Toronto,Ontario,Canada,"Portfolio 2016-2017 Rhombus Media Inc.",English,Drama,2016-08-16,153024.00,15000.00,"Recoupable Advance","Development Program",
2016-2017,P2,"Rhombus Media Inc.",Toronto,Ontario,Canada,"Portfolio 2016-2017 Rhombus Media Inc.",English,Drama,2016-08-16,199952.00,46928.00,"Recoupable Advance","Development Program",
2016-2017,P2,"9324-3160 Qu�bec Inc.",Montreal,Quebec,Canada,"Ceux qui font les r�volutions � moiti�, n'ont fait que se creuser un tombeau",French,Drama,2016-08-17,120000.00,120000.00,Investment,"Production Program",
2016-2017,P2,"EMAfilms Inc.",Montreal,Quebec,Canada,"Portfolio 2016-2017 EMA FILMS INC.",English,Drama,2016-08-17,30000.00,15000.00,"Recoupable Advance","Development Program",
2016-2017,P2,"EMAfilms Inc.",Montreal,Quebec,Canada,"Portfolio 2016-2017 EMA FILMS INC.",English,Comedy,2016-08-17,15000.00,15000.00,"Recoupable Advance","Development Program",
2016-2017,P2,"EMAfilms Inc.",Montreal,Quebec,Canada,"Portfolio 2016-2017 EMA FILMS INC.",French,Drama,2016-08-17,45000.00,15000.00,"Recoupable Advance","Development Program",
2016-2017,P2,"EMAfilms Inc.",Montreal,Quebec,Canada,"Portfolio 2016-2017 EMA FILMS INC.",English,"Science fiction/Fantasy/Tale",2016-08-17,70000.00,25000.00,"Recoupable Advance","Development Program",
2016-2017,P2,"Enigmatico Films Inc.",Toronto,Ontario,Canada,"Portfolio 2016-2017 Enigmatico Films Inc.",English,"Historical Drama",2016-08-17,15000.00,15000.00,"Recoupable Advance","Development Program",
2016-2017,P2,"Markham Street Films Inc.",Toronto,Ontario,Canada,"Portfolio 2016-2017 Markham Street Films Inc.",English,Comedy,2016-08-17,15000.00,15000.00,"Recoupable Advance","Development Program",
2016-2017,P2,"3090-5178 Quebec Inc. f/a/s Palomar",Montreal,Quebec,Canada,"Portfolio 2016-2017 3090-5178 Quebec Inc. f/a/s Palomar",French,Comedy,2016-08-19,15000.00,15000.00,"Recoupable Advance","Development Program",
2016-2017,P2,"3090-5178 Quebec Inc. f/a/s Palomar",Montreal,Quebec,Canada,"Portfolio 2016-2017 3090-5178 Quebec Inc. f/a/s Palomar",English,Horror,2016-08-19,30000.00,15000.00,"Recoupable Advance","Development Program",
2016-2017,P2,"9151-1766 Qu�bec Inc.",Montreal,Quebec,Canada,"Portfolio 2016-2017 9151-1766 Qu�bec Inc.",French,Comedy,2016-08-19,15000.00,15000.00,"Recoupable Advance","Development Program",
2016-2017,P2,"Zazie Films Inc.",Toronto,Ontario,Canada,"Portfolio 2016-2017 Zazie Films Inc.",French,Drama,2016-08-19,15000.00,15000.00,"Recoupable Advance","Development Program",
2016-2017,P2,"Zazie Films Inc.",Toronto,Ontario,Canada,"Portfolio 2016-2017 Zazie Films Inc.",French,Drama,2016-08-19,30000.00,15000.00,"Recoupable Advance","Development Program",
2016-2017,P2,"Zazie Films Inc.",Toronto,Ontario,Canada,"Portfolio 2016-2017 Zazie Films Inc.",French,Drama,2016-08-19,45000.00,15000.00,"Recoupable Advance","Development Program",
2016-2017,P2,"Films S�ville Inc. (Les) / Seville Pictures Inc.",Montreal,Quebec,Canada,"King Dave",French,Drama,2016-08-22,131966.00,131966.00,"Recoupable Advance","Marketing Program",
2016-2017,P2,"Chantale Pag� consultation (L'Atelier de distribution)",Montreal,Quebec,Canada,"Mon ami Dino",French,Comedy,2016-08-23,30000.00,30000.00,"Recoupable Advance","Marketing Program",
2016-2017,P2,"9205-8494 Qu�bec Inc.",Longueuil,Quebec,Canada,Vortex,French,"Science fiction/Fantasy/Tale",2016-08-23,15000.00,15000.00,"Recoupable Advance","Marketing Program",
2016-2017,P2,"Banner House Productions Inc. ",Montreal,Quebec,Canada,"Portfolio 2016-2017 Banner House Productions Inc.",English,Comedy,2016-08-24,15000.00,15000.00,"Recoupable Advance","Development Program",
2016-2017,P2,"Entertainment One Films Canada Inc.",Montreal,Quebec,Canada,Life,English,Drama,2016-08-25,83118.00,87655.00,"Recoupable Advance","Marketing Program","Amended contract signed  10-MAR-16"
2016-2017,P2,"Banana-Moon Sky Films Inc.",Toronto,Ontario,Canada,Borealis,English,Drama,2016-08-26,2872.00,2872.00,Contribution,"International Marketing Program",
2016-2017,P2,"Pacific Northwest Pictures Inc.",Vancouver,"British Columbia",Canada,Lavender,English,Thriller,2016-08-26,44220.00,44220.00,"Recoupable Advance","Marketing Program",
2016-2017,P2,"Carpediem Film & TV Inc.",Montreal,Quebec,Canada,"Portfolio 2016-2017 CarpeDiem Film & TV Inc.",English,Comedy,2016-08-26,65000.00,29000.00,"Recoupable Advance","Development Program",
2016-2017,P2,"Carpediem Film & TV Inc.",Montreal,Quebec,Canada,"Portfolio 2016-2017 CarpeDiem Film & TV Inc.",English,Comedy,2016-08-26,80000.00,15000.00,"Recoupable Advance","Development Program",
2016-2017,P2,"Carpediem Film & TV Inc.",Montreal,Quebec,Canada,"Portfolio 2016-2017 CarpeDiem Film & TV Inc.",French,Action/Adventure,2016-08-26,36000.00,36000.00,"Recoupable Advance","Development Program",
2016-2017,P2,"Eyesteelfilm Distribution Inc.",Montreal,Quebec,Canada,"I Am The Blues",English,Documentary,2016-08-29,30000.00,30000.00,"Recoupable Advance","Marketing Program",
2016-2017,P2,"Funfilm Distribution Inc.",Montreal,Quebec,Canada,"Maudite poutine",French,Drama,2016-08-29,19000.00,19000.00,Contribution,"International Marketing Program",
2016-2017,P2,"Mad Samurai Productions Inc.",Vancouver,"British Columbia",Canada,"Portfolio 2016-2017 Mad Samurai Productions Inc.",English,"Science fiction/Fantasy/Tale",2016-08-29,35000.00,15000.00,"Recoupable Advance","Development Program",
2016-2017,P2,"Mad Samurai Productions Inc.",Vancouver,"British Columbia",Canada,"Portfolio 2016-2017 Mad Samurai Productions Inc.",English,Thriller,2016-08-29,55000.00,20000.00,"Recoupable Advance","Development Program",
2016-2017,P2,"Mad Samurai Productions Inc.",Vancouver,"British Columbia",Canada,"Portfolio 2016-2017 Mad Samurai Productions Inc.",English,Comedy,2016-08-29,20000.00,20000.00,"Recoupable Advance","Development Program",
2016-2017,P2,"Redcloud Studios Inc.",Barrie,Ontario,Canada,"Portfolio 2016-2017 Redcloud Studio's Inc.",English,Comedy,2016-08-29,15000.00,15000.00,"Recoupable Advance","Development Program",
2016-2017,P2,"Stickgirl Productions Inc.",Vancouver,"British Columbia",Canada,"Window Horses",English,Drama,2016-08-31,196883.00,100000.00,"Recoupable Advance","Production Program","Amended contract signed  02-FEB-15"
2016-2017,P2,"Dykon Films Inc.",Toronto,Ontario,Canada,"Keely and Du",English,Thriller,2016-09-01,350000.00,350000.00,Investment,"Production Program",
2016-2017,P2,"Funfilm Distribution Inc.",Montreal,Quebec,Canada,PRANK,French,Comedy,2016-09-01,19770.00,19770.00,Contribution,"International Marketing Program",
2016-2017,P2,"Max Films M�dia Inc.",Montreal,Quebec,Canada,"Portfolio 2016-2017 Max Films M�dia Inc.",French,Drama,2016-09-01,20000.00,20000.00,"Recoupable Advance","Development Program",
2016-2017,P2,"Productions du Rapide-Blanc Inc. (Les)",Montreal,Quebec,Canada,PARFAITES,French,Documentary,2016-09-02,15000.00,15000.00,"Recoupable Advance","Marketing Program",
2016-2017,P2,"Paper Year (Canada) Inc.",Toronto,Ontario,Canada,"Paper Year",English,Comedy,2016-09-07,75000.00,75000.00,"Recoupable Advance","Production Program",
2016-2017,P2,"Arnait Video Productions Inc.",Montreal,Quebec,Canada,"Portfolio 2016-2017 Arnait Video Productions Inc.",English,Drama,2016-09-07,15000.00,15000.00,"Recoupable Advance","Development Program",
2016-2017,P2,"Filmoption International inc.",Westmount,Quebec,Canada,"Embrasse-moi comme tu m'aimes ",French,Drama,2016-09-08,225000.00,225000.00,"Recoupable Advance","Marketing Program",
2016-2017,P2,"Productions Avenida inc.",Montreal,Quebec,Canada,"Portfolio 2016-2017 Productions Avenida inc.",French,"Romantic Comedy",2016-09-08,30000.00,15000.00,"Recoupable Advance","Development Program",
2016-2017,P2,"Productions Avenida inc.",Montreal,Quebec,Canada,"Portfolio 2016-2017 Productions Avenida inc.",French,"Historical Drama",2016-09-08,15000.00,15000.00,"Recoupable Advance","Development Program",
2016-2017,P2,"Weirdos The Film Inc.",Halifax,"Nova Scotia",Canada,WEIRDOS,English,Drama,2016-09-09,500000.00,450000.00,Investment,"Production Program","Amended contract signed  15-SEP-15"
2016-2017,P2,"Full Regalia Enterprises Inc.",Gibsons,"British Columbia",Canada,"Portfolio 2016-2017 Full Regalia Enterprises Inc.",English,Comedy,2016-09-14,15000.00,15000.00,"Recoupable Advance","Development Program",
2016-2017,P2,"9220-5368 Qu�bec Inc.","St-Pierre �le Orl�an",Quebec,Canada,"Chute de Sparte (La)",French,Drama,2016-09-15,1000000.00,1000000.00,Investment,"Production Program",
2016-2017,P2,"Intuitive Pictures Inc.",Montreal,Quebec,Canada,"Avenir du travail :  un monde sans emploi (L')",French,Documentary,2016-09-16,37000.00,37000.00,"Recoupable Advance",Mini-treaties,
2016-2017,P2,"P�riph�ria Productions Inc.",Montreal,Quebec,Canada,"X QUINIENTOS",French,Drama,2016-09-19,10000.00,10000.00,Contribution,"International Marketing Program",
2016-2017,P2,"Wreckhouse Productions Inc.","St. John's",Newfoundland/Labrad.,Canada,"Portfolio 2016-2017 Wreckhouse Productions Inc.",English,Drama,2016-09-22,15000.00,15000.00,"Recoupable Advance","Development Program",
2016-2017,P3,"Remstar Films Inc.",Montreal,Quebec,Canada,"Votez Bougon",French,Comedy,2016-09-23,569850.00,569850.00,"Recoupable Advance","Marketing Program",
2016-2017,P3,"Sudden Storm Entertainment Ltd. ",Toronto,Ontario,Canada,"Portfolio 2016-2017 Sudden Storm Entertainment Ltd.",English,"Science fiction/Fantasy/Tale",2016-09-26,15000.00,15000.00,"Recoupable Advance","Development Program",
2016-2017,P2,"Films Christal, s.e.c.(Les), agissant par l'interm�diaire de son commandit�, Les Films Christal Inc",Montreal,Quebec,Canada,"Guibord s'en va-t-en guerre",French,Comedy,2016-09-27,451742.00,473428.00,"Recoupable Advance","Marketing Program","Amended contract signed  02-DEC-15"
2016-2017,P2,"Steady Films Inc.",Vancouver,"British Columbia",Canada,"Never Steady, Never Still",English,Drama,2016-09-28,280000.00,250000.00,Investment,"Production Program","Amended contract signed  27-JAN-16"
2016-2017,P2,"Axia Films inc.",Montreal,Quebec,Canada,"Pacte des anges (Le)",French,Drama,2016-09-28,188743.00,188743.00,"Recoupable Advance","Marketing Program",
2016-2017,P2,"Clique Pictures Inc.",Toronto,Ontario,Canada,"Portfolio 2015-2016 Clique Pictures Inc.",English,Thriller,2016-09-28,0.00,15000.00,"Recoupable Advance","Development Program","Amended contract signed  04-FEB-16"
2016-2017,P2,"Coop Vid�o de Montr�al",Montreal,Quebec,Canada,"Portfolio 2016-2017 Coop Vid�o de Montr�al",French,Drama,2016-09-28,45000.00,25000.00,"Recoupable Advance","Development Program",
2016-2017,P2,"Coop Vid�o de Montr�al",Montreal,Quebec,Canada,"Portfolio 2016-2017 Coop Vid�o de Montr�al",French,Comedy,2016-09-28,20000.00,20000.00,"Recoupable Advance","Development Program",
2016-2017,P2,"Films S�ville Inc. (Les) / Seville Pictures Inc.",Montreal,Quebec,Canada,Anna,French,Drama,2016-09-29,56532.00,56866.00,"Recoupable Advance","Marketing Program","Amended contract signed  02-DEC-15"
2016-2017,P2,"9097-4767 Qu�bec inc.",Montreal,Quebec,Canada,"Portfolio 2016-2017 9097-4767 Qu�bec Inc.",French,Thriller,2016-09-29,15000.00,15000.00,"Recoupable Advance","Development Program",
2016-2017,P3,"Chantale Pag� consultation (L'Atelier de distribution)",Montreal,Quebec,Canada,"A la poursuite de la paix ",French,Documentary,2016-09-30,20000.00,20000.00,"Recoupable Advance","Marketing Program",
2016-2017,P3,"Films Christal, s.e.c.(Les), agissant par l'interm�diaire de son commandit�, Les Films Christal Inc",Montreal,Quebec,Canada,Hibou,French,Comedy,2016-09-30,20468.00,20468.00,"Recoupable Advance","Marketing Program",
2016-2017,P3,"Isuma Distribution International Ltd.",Montreal,Quebec,Canada,"Maliglutit (Searchers)",English,Drama,2016-09-30,37390.00,37390.00,"Recoupable Advance","Marketing Program",
2016-2017,P3,"Films Christal, s.e.c.(Les), agissant par l'interm�diaire de son commandit�, Les Films Christal Inc",Montreal,Quebec,Canada,"NOUVELLE VIE DE PAUL SNEIJDER (LA)",French,Drama,2016-10-02,8336.00,8336.00,"Recoupable Advance","Marketing Program",
2016-2017,P3,"Level Film Inc.",Toronto,Ontario,Canada,"Colossal Failure of the Modern Relationship (The)",English,"Romantic Comedy",2016-10-03,37661.00,37661.00,"Recoupable Advance","Marketing Program",
2016-2017,P3,"Elevation Pictures Corp.",Toronto,Ontario,Canada,"Closet Monster",English,Drama,2016-10-04,214900.00,214900.00,"Recoupable Advance","Marketing Program",
2016-2017,P3,"Mongrel Media Inc.",Toronto,Ontario,Canada,Maudie,English,Drama,2016-10-04,15200.00,15200.00,Contribution,"International Marketing Program",
2016-2017,P3,"First Generation Films Inc.",Toronto,Ontario,Canada,"Portfolio 2016-2017 First Generation Films Inc.",English,Thriller,2016-10-04,25000.00,25000.00,"Recoupable Advance","Development Program",
2016-2017,P3,"Jonathan Joffe Pictures Ltd.",Calgary,Alberta,Canada,"Portfolio 2016-2017 Jonathan Joffe Pictures Ltd.",English,"Science fiction/Fantasy/Tale",2016-10-04,15000.00,15000.00,"Recoupable Advance","Development Program",
2016-2017,P3,"Voyelles Films Productions inc.",Montreal,Quebec,Canada,"Portfolio 2016-2017 Voyelles Films Productions inc.",French,Drama,2016-10-04,15000.00,15000.00,"Recoupable Advance","Development Program",
2016-2017,P3,"SID Films Inc.",Winnipeg,Manitoba,Canada,"Stegman Is Dead",English,Comedy,2016-10-05,75000.00,75000.00,Investment,"Production Program",
2016-2017,P3,"The Second Time Around Inc.",Toronto,Ontario,Canada,"Second Time Around (The)",English,Drama,2016-10-06,1000.00,1000.00,Contribution,"International Marketing Program",
2016-2017,P3,"Funfilm Distribution Inc.",Montreal,Quebec,Canada,"Chasse au collet (La)",French,Drama,2016-10-07,20000.00,20000.00,"Recoupable Advance","Marketing Program",
2016-2017,P3,"Room Productions Inc.",Toronto,Ontario,Canada,Room,English,Drama,2016-10-07,2753316.00,3000000.00,Investment,"Production Program","Amended contract signed  10-OCT-14"
2016-2017,P3,"9338-0145 Qu�bec Inc.",Montreal,Quebec,Canada,"Song of Granite",English,Drama,2016-10-10,120000.00,120000.00,Investment,"Production Program",
2016-2017,P3,"Productions Miraculum Inc.",Montreal,Quebec,Canada,"Nous sommes les autres",French,Drama,2016-10-11,1150000.00,1150000.00,"Recoupable Advance","Production Program",
2016-2017,P3,"Geordie Sabbagh Productions Inc.",Toronto,Ontario,Canada,"Portfolio 2016-2017 Geordie Sabbagh Productions Inc.",English,Drama,2016-10-11,15000.00,15000.00,"Recoupable Advance","Development Program",
2016-2017,P3,"Metafilms Inc.",Montreal,Quebec,Canada,"Portfolio 2016-2017 Metafilms Inc.",French,Drama,2016-10-11,80160.00,25560.00,"Recoupable Advance","Development Program",
2016-2017,P3,"Metafilms Inc.",Montreal,Quebec,Canada,"Portfolio 2016-2017 Metafilms Inc.",French,Comedy,2016-10-11,54600.00,54600.00,"Recoupable Advance","Development Program",
2016-2017,P3,"Metafilms Inc.",Montreal,Quebec,Canada,"Portfolio 2016-2017 Metafilms Inc.",English,Thriller,2016-10-11,116560.00,36400.00,"Recoupable Advance","Development Program",
2016-2017,P3,"2531852 Ontario Inc.",Toronto,Ontario,Canada,"Becoming Burlesque",English,Drama,2016-10-13,134750.00,134750.00,Investment,"Production Program",
2016-2017,P3,"Milton's Secret Productions Inc.",Toronto,Ontario,Canada,"Milton's Secret",English,Drama,2016-10-13,570000.00,500000.00,Investment,"Production Program","Amended contract signed  16-OCT-15"
2016-2017,P3,"Films S�ville Inc. (Les) / Seville Pictures Inc.",Montreal,Quebec,Canada,"Nitro Rush",French,Action/Adventure,2016-10-13,398846.00,398846.00,"Recoupable Advance","Marketing Program",
2016-2017,P3,"Films Vision 4 Inc.",Montreal,Quebec,Canada,"Portfolio 2016-2017 Films Vision 4 Inc.",French,"Romantic Comedy",2016-10-13,25000.00,25000.00,"Recoupable Advance","Development Program",
2016-2017,P3,"High Definition Pictures Inc.",Winnipeg,Manitoba,Canada,"Portfolio 2016-2017 High Definition Pictures Inc.",English,Drama,2016-10-13,15000.00,15000.00,"Recoupable Advance","Development Program",
2016-2017,P3,"High Definition Pictures Inc.",Winnipeg,Manitoba,Canada,"Portfolio 2016-2017 High Definition Pictures Inc.",English,Drama,2016-10-13,30000.00,15000.00,"Recoupable Advance","Development Program",
2016-2017,P3,"Sexton & Son Productions Inc.",St-John's,Newfoundland/Labrad.,Canada,"Portfolio 2016-2017 Sexton & Son Productions Inc.",English,Drama,2016-10-13,15000.00,15000.00,"Recoupable Advance","Development Program",
2016-2017,P3,"Shore Road Pictures Inc.",Fredericton,"New Brunswick",Canada,"Portfolio 2016-2017 Shore Road Pictures Inc.",English,Comedy,2016-10-13,15000.00,15000.00,"Recoupable Advance","Development Program",
2016-2017,P3,"Zapruder Films Inc.",Toronto,Ontario,Canada,"Portfolio 2016-2017 Zapruder Films Inc.",English,"Romantic Comedy",2016-10-13,15000.00,15000.00,"Recoupable Advance","Development Program",
2016-2017,P3,"Search Engine Films Inc.",Toronto,Ontario,Canada,"Jean of the Joneses",English,Comedy,2016-10-14,49748.00,49748.00,"Recoupable Advance","Marketing Program",
2016-2017,P3,"Paper Year (Canada) Inc.",Toronto,Ontario,Canada,"Paper Year",English,Comedy,2016-10-14,500000.00,500000.00,Investment,"Production Program",
2016-2017,P3,"Paper Year (Canada) Inc.",Toronto,Ontario,Canada,"Paper Year",English,Comedy,2016-10-14,0.00,75000.00,"Recoupable Advance","Production Program","Amended contract signed  07-SEP-16"
2016-2017,P3,"Film Works Ltd. (The) ",Toronto,Ontario,Canada,"Portfolio 2015-2016 Film Works Ltd. (The)",English,Western,2016-10-17,29622.00,30000.00,"Recoupable Advance","Development Program","Amended contract signed  14-DEC-15"
2016-2017,P3,"Christal Films Productions inc.",Montreal,Quebec,Canada,"Portfolio 2016-2017 Christal Films Productions Inc.",French,Comedy,2016-10-17,51000.00,51000.00,"Recoupable Advance","Development Program",
2016-2017,P3,"Christal Films Productions inc.",Montreal,Quebec,Canada,"Portfolio 2016-2017 Christal Films Productions Inc.",French,"Romantic Comedy",2016-10-17,200000.00,38500.00,"Recoupable Advance","Development Program",
2016-2017,P3,"Christal Films Productions inc.",Montreal,Quebec,Canada,"Portfolio 2016-2017 Christal Films Productions Inc.",French,"Historical Drama",2016-10-17,130700.00,44200.00,"Recoupable Advance","Development Program",
2016-2017,P3,"Christal Films Productions inc.",Montreal,Quebec,Canada,"Portfolio 2016-2017 Christal Films Productions Inc.",French,Drama,2016-10-17,86500.00,35500.00,"Recoupable Advance","Development Program",
2016-2017,P3,"Christal Films Productions inc.",Montreal,Quebec,Canada,"Portfolio 2016-2017 Christal Films Productions Inc.",French,"Historical Drama",2016-10-17,161500.00,30800.00,"Recoupable Advance","Development Program",
2016-2017,P3,"Sancor Holdings Inc.",Toronto,Ontario,Canada,"Second Time Around (The)",English,Drama,2016-10-17,60000.00,60000.00,"Recoupable Advance","Marketing Program",
2016-2017,P3,"Screen Siren Pictures Inc.",Vancouver,"British Columbia",Canada,"Indian Horse",English,Drama,2016-10-18,437154.00,240000.00,"Recoupable Advance","Production Program","Amended contract signed  02-MAR-16"
2016-2017,P3,"Family Viewing Productions Ltd.",Toronto,Ontario,Canada,"Portfolio 2016-2017 Family Viewing Productions Ltd",English,Drama,2016-10-18,25000.00,25000.00,"Recoupable Advance","Development Program",
2016-2017,P3,"Hope of Glory Pictures Ltd.",Burnaby,"British Columbia",Canada,"Portfolio 2016-2017 Hope of Glory Pictures Ltd.",English,Comedy,2016-10-18,15000.00,15000.00,"Recoupable Advance","Development Program",
2016-2017,P3,"Hope of Glory Pictures Ltd.",Burnaby,"British Columbia",Canada,"Portfolio 2016-2017 Hope of Glory Pictures Ltd.",English,Mystery/Crime/Police,2016-10-18,30000.00,15000.00,"Recoupable Advance","Development Program",
2016-2017,P3,"Inferno Pictures Inc.",Winnipeg,Manitoba,Canada,"Portfolio 2016-2017 Inferno Pictures Inc.",English,Drama,2016-10-18,20600.00,20600.00,"Recoupable Advance","Development Program",
2016-2017,P3,"Inferno Pictures Inc.",Winnipeg,Manitoba,Canada,"Portfolio 2016-2017 Inferno Pictures Inc.",English,Drama,2016-10-18,42600.00,22000.00,"Recoupable Advance","Development Program",
2016-2017,P3,"Inferno Pictures Inc.",Winnipeg,Manitoba,Canada,"Portfolio 2016-2017 Inferno Pictures Inc.",English,Drama,2016-10-18,60000.00,17400.00,"Recoupable Advance","Development Program",
2016-2017,P3,"9281-8269 Qu�bec Inc.",St-Bruno,Quebec,Canada,"Portfolio 2016-2017 9281-8269 Qu�bec Inc.",French,Drama,2016-10-19,15000.00,15000.00,"Recoupable Advance","Development Program",
2016-2017,P3,"Topsail Development Limited",Halifax,"Nova Scotia",Canada,"Portfolio 2016-2017 Topsail Development Limited",English,Comedy,2016-10-19,15000.00,15000.00,"Recoupable Advance","Development Program",
2016-2017,P3,"Vitality Media Productions Inc.",Toronto,Ontario,Canada,"Portfolio 2016-2017 Vitality Media Productions Inc.",English,Thriller,2016-10-19,15000.00,15000.00,"Recoupable Advance","Development Program",
2016-2017,P3,"Zeeworks Pictures Inc.",Vancouver,"British Columbia",Canada,"Portfolio 2016-2017 Zeeworks Pictures Inc.",English,Action/Adventure,2016-10-19,25000.00,25000.00,"Recoupable Advance","Development Program",
2016-2017,P3,"Films S�ville Inc. (Les) / Seville Pictures Inc.",Montreal,Quebec,Canada,"Juste la fin du monde",French,Drama,2016-10-20,453217.00,453217.00,"Recoupable Advance","Marketing Program",
2016-2017,P3,"P�riph�ria Productions Inc.",Montreal,Quebec,Canada,"Portfolio 2016-2017 P�riph�ria Productions Inc.",English,Drama,2016-10-20,15000.00,15000.00,"Recoupable Advance","Development Program",
2016-2017,P3,"108 Media Corporation",Toronto,Ontario,Canada,Birdland,English,Mystery/Crime/Police,2016-10-21,50000.00,50000.00,"Recoupable Advance","Marketing Program",
2016-2017,P3,"Axia Films inc.",Montreal,Quebec,Canada,"Pacte des anges (Le)",French,Drama,2016-10-21,215893.00,188743.00,"Recoupable Advance","Marketing Program","Amended contract signed  28-SEP-16"
2016-2017,P3,"Big Motion Pictures Limited",Chester,"Nova Scotia",Canada,"Portfolio 2016-2017 Big Motion Pictures Limited",English,Drama,2016-10-21,15000.00,15000.00,"Recoupable Advance","Development Program",
2016-2017,P3,"Trilight Entertainment Inc.",Calgary,Alberta,Canada,"Portfolio 2016-2017 Trilight Entertainment Inc.",English,Action/Adventure,2016-10-21,15000.00,15000.00,"Recoupable Advance","Development Program",
2016-2017,P3,"Forum Films 2005 Inc.",Montreal,Quebec,Canada,"Portfolio 2016-2017 Forum Films 2005 Inc.",French,"Historical Drama",2016-10-24,30000.00,30000.00,"Recoupable Advance","Development Program",
2016-2017,P3,"Forum Films 2005 Inc.",Montreal,Quebec,Canada,"Portfolio 2016-2017 Forum Films 2005 Inc.",French,"Romantic Comedy",2016-10-24,45000.00,15000.00,"Recoupable Advance","Development Program",
2016-2017,P3,"Productions Caramel Film Inc.",Montreal,Quebec,Canada,"Portfolio 2016-2017 Productions Caramel Film Inc.",French,Comedy,2016-10-24,43160.00,43160.00,"Recoupable Advance","Development Program",
2016-2017,P3,"Productions Caramel Film Inc.",Montreal,Quebec,Canada,"Portfolio 2016-2017 Productions Caramel Film Inc.",English,Drama,2016-10-24,84336.00,18816.00,"Recoupable Advance","Development Program",
2016-2017,P3,"Productions Caramel Film Inc.",Montreal,Quebec,Canada,"Portfolio 2016-2017 Productions Caramel Film Inc.",French,Drama,2016-10-24,142849.00,58513.00,"Recoupable Advance","Development Program",
2016-2017,P3,"Productions Caramel Film Inc.",Montreal,Quebec,Canada,"Portfolio 2016-2017 Productions Caramel Film Inc.",French,Comedy,2016-10-24,65520.00,22360.00,"Recoupable Advance","Development Program",
2016-2017,P3,"Productions Caramel Film Inc.",Montreal,Quebec,Canada,"Portfolio 2016-2017 Productions Caramel Film Inc.",French,Drama,2016-10-24,200000.00,57151.00,"Recoupable Advance","Development Program",
2016-2017,P3,"Productions Caramel Film Inc.",Montreal,Quebec,Canada,"Portfolio 2016-2017 Productions Caramel Film Inc.",French,Drama,2016-10-24,215000.00,15000.00,"Recoupable Advance","Development Program",
2016-2017,P3,"Quadrant Motion Pictures Inc.",Toronto,Ontario,Canada,"Portfolio 2016-2017 Quadrant Motion Pictures Inc.",English,Comedy,2016-10-24,15000.00,15000.00,"Recoupable Advance","Development Program",
2016-2017,P3,"Max Films Inc.",Montreal,Quebec,Canada,"Portfolio 2016-2017 Max Films Inc.",French,Drama,2016-10-25,115000.00,115000.00,"Recoupable Advance","Development Program",
2016-2017,P3,"Orange M�dias Inc.",Rosemere,Quebec,Canada,"Portfolio 2016-2017 Orange M�dias Inc.",French,Drama,2016-10-25,35000.00,20000.00,"Recoupable Advance","Development Program",
2016-2017,P3,"Orange M�dias Inc.",Rosemere,Quebec,Canada,"Portfolio 2016-2017 Orange M�dias Inc.",French,Drama,2016-10-25,50000.00,15000.00,"Recoupable Advance","Development Program",
2016-2017,P3,"Orange M�dias Inc.",Rosemere,Quebec,Canada,"Portfolio 2016-2017 Orange M�dias Inc.",English,Comedy,2016-10-25,15000.00,15000.00,"Recoupable Advance","Development Program",
2016-2017,P3,"Alcina Pictures Ltd.",Toronto,Ontario,Canada,"Portfolio 2016-2017 Alcina Pictures Ltd.",English,Thriller,2016-10-26,15000.00,15000.00,"Recoupable Advance","Development Program",
2016-2017,P3,"Films Du Paria Inc. (les)",Longueuil,Quebec,Canada,"Portfolio 2016-2017 Films Du Paria Inc. (les)",French,"Romantic Comedy",2016-10-27,15000.00,15000.00,"Recoupable Advance","Development Program",
2016-2017,P3,"9347-7784 Qu�bec inc.",Montreal,Quebec,Canada,"Chien de garde",French,Thriller,2016-10-28,430000.00,430000.00,Investment,"Production Program",
2016-2017,P3,"Carousel Pictures Inc.",Toronto,Ontario,Canada,"Portfolio 2016-2017 Carousel Pictures Inc.",English,"Historical Drama",2016-10-28,15000.00,15000.00,"Recoupable Advance","Development Program",
2016-2017,P3,"Circle Blue Films Inc.",Mississauga,Ontario,Canada,"Portfolio 2016-2017 Circle Blue Films Inc.",English,"Science fiction/Fantasy/Tale",2016-10-28,15000.00,15000.00,"Recoupable Advance","Development Program",
2016-2017,P3,"Microscope inc.",Montreal,Quebec,Canada,"Portfolio 2016-2017 Microscope Inc.",French,Drama,2016-10-28,200000.00,30000.00,"Recoupable Advance","Development Program",
2016-2017,P3,"Microscope inc.",Montreal,Quebec,Canada,"Portfolio 2016-2017 Microscope Inc.",French,Comedy,2016-10-28,170000.00,58500.00,"Recoupable Advance","Development Program",
2016-2017,P3,"Microscope inc.",Montreal,Quebec,Canada,"Portfolio 2016-2017 Microscope Inc.",English,Action/Adventure,2016-10-28,61000.00,61000.00,"Recoupable Advance","Development Program",
2016-2017,P3,"Microscope inc.",Montreal,Quebec,Canada,"Portfolio 2016-2017 Microscope Inc.",English,Comedy,2016-10-28,111500.00,50500.00,"Recoupable Advance","Development Program",
2016-2017,P3,"Precious Snowflake Productions Inc.",Toronto,Ontario,Canada,"Portfolio 2016-2017 Precious Snowflake Productions Inc.",English,Comedy,2016-10-28,15000.00,15000.00,"Recoupable Advance","Development Program",
2016-2017,P3,"Scythia Films Inc.",Toronto,Ontario,Canada,"Portfolio 2016-2017 Scythia Films Inc.",English,Thriller,2016-10-28,15000.00,15000.00,"Recoupable Advance","Development Program",
2016-2017,P3,"Pyewacket Jobro Productions Inc.",Toronto,Ontario,Canada,Pyewacket,English,Horror,2016-11-01,750000.00,750000.00,Investment,"Production Program",
2016-2017,P3,"Coop Vid�o de Montr�al",Montreal,Quebec,Canada,"Portfolio 2013-2014 Coop Vid�o de Montr�al",French,Mystery/Crime/Police,2016-11-03,73598.00,15000.00,"Recoupable Advance","Development Program","Amended contract signed  18-NOV-13"
2016-2017,P3,"First Generation Films Inc.",Toronto,Ontario,Canada,"Portfolio 2013-2014 First Generation Films Inc.",English,"Science fiction/Fantasy/Tale",2016-11-03,75230.00,25000.00,"Recoupable Advance","Development Program","Amended contract signed  15-NOV-13"
2016-2017,P3,"Euclid 431 Pictures Inc.",Toronto,Ontario,Canada,"Portfolio 2016-2017 Euclid 431 Pictures Inc.",English,Thriller,2016-11-03,25000.00,25000.00,"Recoupable Advance","Development Program",
2016-2017,P3,"MCP Productions Inc.",Montreal,Quebec,Canada,"Portfolio 2016-2017 MCP Productions Inc.",English,"Science fiction/Fantasy/Tale",2016-11-03,30000.00,15000.00,"Recoupable Advance","Development Program",
2016-2017,P3,"MCP Productions Inc.",Montreal,Quebec,Canada,"Portfolio 2016-2017 MCP Productions Inc.",French,Comedy,2016-11-03,15000.00,15000.00,"Recoupable Advance","Development Program",
2016-2017,P3,"Productions 10e Ave inc.",St-Augustin-Desmaure,Quebec,Canada,"Portfolio 2016-2017 Productions 10e Ave Inc.",French,Comedy,2016-11-03,105000.00,16582.00,"Recoupable Advance","Development Program",
2016-2017,P3,"Productions 10e Ave inc.",St-Augustin-Desmaure,Quebec,Canada,"Portfolio 2016-2017 Productions 10e Ave Inc.",French,Action/Adventure,2016-11-03,15664.00,15664.00,"Recoupable Advance","Development Program",
2016-2017,P3,"Productions 10e Ave inc.",St-Augustin-Desmaure,Quebec,Canada,"Portfolio 2016-2017 Productions 10e Ave Inc.",French,Action/Adventure,2016-11-03,88418.00,72754.00,"Recoupable Advance","Development Program",
2016-2017,P3,"�a Tourne Productions Ltee.","Ste-Anne du Bocage","New Brunswick",Canada,"Portfolio 2016-2017 �a Tourne Productions Ltee.",French,Drama,2016-11-03,15000.00,15000.00,"Recoupable Advance","Development Program",
2016-2017,P3,"Relay Station Development Inc.",Toronto,Ontario,Canada,"Ordinary Days",English,Drama,2016-11-04,134750.00,134750.00,Investment,"Production Program",
2016-2017,P3,"6710875 Canada Inc. (faisant affaires sous Nish Media)",Gatineau,Quebec,Canada,"Portfolio 2016-2017 6710875 Canada inc.",French,Action/Adventure,2016-11-07,15000.00,15000.00,"Recoupable Advance","Development Program",
2016-2017,P3,"Level Film Inc.",Toronto,Ontario,Canada,"Girl King (The)",English,"Historical Drama",2016-11-08,38115.00,38115.00,"Recoupable Advance","Marketing Program",
2016-2017,P3,"Wubby Productions (Muse) Inc.",Montreal,Quebec,Canada,"Petite �cole d'H�l�ne (La)",French,Children,2016-11-08,40000.00,40000.00,"Recoupable Advance",Mini-treaties,
2016-2017,P3,"Carte Blanche Films Inc.",Ottawa,Ontario,Canada,"Portfolio 2016-2017 Carte Blanche Films Inc.",French,Drama,2016-11-08,15000.00,15000.00,"Recoupable Advance","Development Program",
2016-2017,P3,"Encore Films inc.",Montreal,Quebec,Canada,"Portfolio 2016-2017 Encore Films inc.",French,Drama,2016-11-08,15000.00,15000.00,"Recoupable Advance","Development Program",
2016-2017,P3,"Trinica Entertainment Consultants Inc.",Montreal,Quebec,Canada,"Portfolio 2016-2017 Trinica Entertainment Consultants Inc.",English,Drama,2016-11-08,20000.00,20000.00,"Recoupable Advance","Development Program",
2016-2017,P3,"Quiet Revolution Pictures Inc.",Ottawa,Ontario,Canada,"Portfolio 2016-2017 Quiet Revolution Pictures Inc.",English,"Historical Drama",2016-11-09,15000.00,15000.00,"Recoupable Advance","Development Program",
2016-2017,P3,"Smiley Guy Studios Inc.",Toronto,Ontario,Canada,"Portfolio 2016-2017 Smiley Guy Studios Inc.",English,Action/Adventure,2016-11-09,15000.00,15000.00,"Recoupable Advance","Development Program",
2016-2017,P3,"Goon 2 Productions Inc.",Toronto,Ontario,Canada,"Goon: Last of the Enforcers",English,Comedy,2016-11-10,25000.00,25000.00,Contribution,"International Marketing Program",
2016-2017,P3,"Screen Siren Pictures Inc.",Vancouver,"British Columbia",Canada,"Indian Horse",English,Drama,2016-11-10,0.00,240000.00,"Recoupable Advance","Production Program","Amended contract signed  02-MAR-16"
2016-2017,P3,"Buck Productions Inc.",Toronto,Ontario,Canada,"Portfolio 2016-2017 Buck Productions Inc.",English,"Science fiction/Fantasy/Tale",2016-11-10,15000.00,15000.00,"Recoupable Advance","Development Program",
2016-2017,P3,"GROUPE PVP INC.",Matane,Quebec,Canada,"Portfolio 2016-2017 GROUPE PVP INC.",French,Action/Adventure,2016-11-10,19955.00,19955.00,"Recoupable Advance","Development Program",
2016-2017,P3,"Mulmur Feed Co. Ltd.",Mulmur,Ontario,Canada,"Portfolio 2016-2017 Mulmur Feed Co. Ltd.",English,Drama,2016-11-10,45000.00,45000.00,"Recoupable Advance","Development Program",
2016-2017,P3,"Indian Horse Productions (BC) Inc.",Vancouver,"British Columbia",Canada,"Indian Horse",English,Drama,2016-11-11,4000000.00,4000000.00,"Investment, Recoupable Advance","Production Program",
2016-2017,P3,"Filmarto Inc.",Montreal,Quebec,Canada,"Portfolio 2016-2017 FILMARTO INC.",English,"Historical Drama",2016-11-14,40000.00,15000.00,"Recoupable Advance","Development Program",
2016-2017,P3,"Filmarto Inc.",Montreal,Quebec,Canada,"Portfolio 2016-2017 FILMARTO INC.",French,Comedy,2016-11-14,25000.00,25000.00,"Recoupable Advance","Development Program",
2016-2017,P3,"Cave Painting Pictures Inc.",Toronto,Ontario,Canada,"Portfolio 2016-2017 Cave Painting Pictures Inc.",English,Western,2016-11-15,15000.00,15000.00,"Recoupable Advance","Development Program",
2016-2017,P3,"Productions l'unit� centrale inc.",Montreal,Quebec,Canada,"Portfolio 2016-2017 Productions l'unit� centrale inc.",French,Drama,2016-11-15,15000.00,15000.00,"Recoupable Advance","Development Program",
2016-2017,P3,"Darius - Padre Productions Inc.",Toronto,Ontario,Canada,"Padre (The)",English,Drama,2016-11-16,119280.00,119280.00,"Recoupable Advance","Production Program",
2016-2017,P3,"Attraction Images inc.",Montreal,Quebec,Canada,"Portfolio 2016-2017 Attraction Images inc.",French,"Romantic Comedy",2016-11-16,43000.00,23500.00,"Recoupable Advance","Development Program",
2016-2017,P3,"Attraction Images inc.",Montreal,Quebec,Canada,"Portfolio 2016-2017 Attraction Images inc.",French,Action/Adventure,2016-11-16,19500.00,19500.00,"Recoupable Advance","Development Program",
2016-2017,P3,"Attraction Images inc.",Montreal,Quebec,Canada,"Portfolio 2016-2017 Attraction Images inc.",French,"Science fiction/Fantasy/Tale",2016-11-16,94307.00,51307.00,"Recoupable Advance","Development Program",
2016-2017,P3,"Schooled Films Inc.",Vancouver,"British Columbia",Canada,Public-Schooled,English,Comedy,2016-11-16,350000.00,350000.00,Investment,"Production Program",
2016-2017,P3,"Bad Astronaut Inc.",Halifax,"Nova Scotia",Canada,"Portfolio 2016-2017 Bad Astronaut Inc.",English,Comedy,2016-11-16,15000.00,15000.00,"Recoupable Advance","Development Program",
2016-2017,P3,"9297-6885 Qu�bec inc.",Montreal,Quebec,Canada,"Mirage (Le)",French,Comedy,2016-11-17,1980768.00,2075000.00,Investment,"Production Program","Amended contract signed  11-AUG-14"
2016-2017,P3,"Metropole Films Distribution",Montreal,Quebec,Canada,Brooklyn,English,Drama,2016-11-18,473193.00,299904.00,"Recoupable Advance","Marketing Program","Amended contract signed  14-DEC-15"
2016-2017,P3,"A71 Entertainment Inc.",Toronto,Ontario,Canada,Darken,English,"Science fiction/Fantasy/Tale",2016-11-21,40000.00,40000.00,"Recoupable Advance","Marketing Program",
2016-2017,P3,"Connections Productions Inc.",Bedford,"Nova Scotia",Canada,"Portfolio 2016-2017 Connections Productions Inc.",French,"Science fiction/Fantasy/Tale",2016-11-21,15000.00,15000.00,"Recoupable Advance","Development Program",
2016-2017,P3,"Crawlspace Films, Inc.","St. John's",Newfoundland/Labrad.,Canada,"Portfolio 2016-2017 Crawlspace Films, Inc.",English,Drama,2016-11-21,15000.00,15000.00,"Recoupable Advance","Development Program",
2016-2017,P3,"Honalee Productions Inc.",Vancouver,"British Columbia",Canada,"Portfolio 2016-2017 Honalee Productions Inc.",English,"Historical Drama",2016-11-21,15000.00,15000.00,"Recoupable Advance","Development Program",
2016-2017,P3,"Galafilm Productions (The Girl King) Inc. / Productions Galafilm (The Girl King) Inc.",Montreal,Quebec,Canada,"Girl King (The)",English,"Historical Drama",2016-11-22,31721.00,31721.00,"Recoupable Advance","Marketing Program",
2016-2017,P3,"D Films Corporation",Toronto,Ontario,Canada,"Mad Ship",English,"Historical Drama",2016-11-22,46500.00,129190.00,"Recoupable Advance","Marketing Program","Amended contract signed  26-OCT-12"
2016-2017,P3,"Entertainment One Films Canada Inc.",Montreal,Quebec,Canada,"9th Life of Louis Drax (The) ",English,Drama,2016-11-23,48077.00,48077.00,"Recoupable Advance","Marketing Program",
2016-2017,P3,"MAX FILMS (HTA) INC.",Montreal,Quebec,Canada,"HOCHELAGA, TERRE DES �MES",French,"Historical Drama",2016-11-23,3500000.00,3500000.00,"Investment, Recoupable Advance","Production Program",
2016-2017,P3,"Films S�ville Inc. (Les) / Seville Pictures Inc.",Montreal,Quebec,Canada,1:54,French,Drama,2016-11-24,344970.00,344970.00,"Recoupable Advance","Marketing Program",
2016-2017,P3,"Pier 21 Films Ltd.",Toronto,Ontario,Canada,"Portfolio 2016-2017 Pier 21 Films Ltd.",English,Drama,2016-11-25,15000.00,15000.00,"Recoupable Advance","Development Program",
2016-2017,P3,"MAX FILMS (HTA) INC.",Montreal,Quebec,Canada,"HOCHELAGA, TERRE DES �MES",French,"Historical Drama",2016-11-28,0.00,150000.00,"Recoupable Advance","Production Program","Amended contract signed  19-MAY-16"
2016-2017,P3,"Funfilm Distribution Inc.",Montreal,Quebec,Canada,PRANK,French,Comedy,2016-11-28,30000.00,30000.00,"Recoupable Advance","Marketing Program",
2016-2017,P3,"Elevation Pictures Corp.",Toronto,Ontario,Canada,Regression,English,Thriller,2016-11-28,191351.00,195593.00,"Recoupable Advance","Marketing Program","Amended contract signed  08-MAR-16"
2016-2017,P3,"BGIRP Inc.",Toronto,Ontario,Canada,"Brown Girl Begins",English,"Science fiction/Fantasy/Tale",2016-11-29,50000.00,50000.00,Investment,"Production Program",
2016-2017,P3,"Dead Shack Productions Inc.",Vancouver,"British Columbia",Canada,"Dead Shack",English,Horror,2016-11-29,250000.00,250000.00,Investment,"Production Program",
2016-2017,P3,"6909060 Canada Inc. (d/b/a Prospector Films)",Montreal,Quebec,Canada,"Portfolio 2016-2017 6909060 Canada Inc.",English,Comedy,2016-11-29,15000.00,15000.00,"Recoupable Advance","Development Program",
2016-2017,P3,"6909060 Canada Inc. (d/b/a Prospector Films)",Montreal,Quebec,Canada,"Portfolio 2016-2017 6909060 Canada Inc.",English,"Science fiction/Fantasy/Tale",2016-11-29,30000.00,15000.00,"Recoupable Advance","Development Program",
2016-2017,P3,"Item 7 Inc.",Montreal,Quebec,Canada,"Portfolio 2016-2017 Item 7 Inc.",English,Mystery/Crime/Police,2016-11-29,178000.00,47000.00,"Recoupable Advance","Development Program",
2016-2017,P3,"Item 7 Inc.",Montreal,Quebec,Canada,"Portfolio 2016-2017 Item 7 Inc.",French,Musical,2016-11-29,131000.00,25000.00,"Recoupable Advance","Development Program",
2016-2017,P3,"Item 7 Inc.",Montreal,Quebec,Canada,"Portfolio 2016-2017 Item 7 Inc.",English,Drama,2016-11-29,15000.00,15000.00,"Recoupable Advance","Development Program",
2016-2017,P3,"Item 7 Inc.",Montreal,Quebec,Canada,"Portfolio 2016-2017 Item 7 Inc.",French,Drama,2016-11-29,64000.00,49000.00,"Recoupable Advance","Development Program",
2016-2017,P3,"Item 7 Inc.",Montreal,Quebec,Canada,"Portfolio 2016-2017 Item 7 Inc.",English,"Historical Drama",2016-11-29,106000.00,27000.00,"Recoupable Advance","Development Program",
2016-2017,P3,"Item 7 Inc.",Montreal,Quebec,Canada,"Portfolio 2016-2017 Item 7 Inc.",French,Drama,2016-11-29,79000.00,15000.00,"Recoupable Advance","Development Program",
2016-2017,P3,"Mongrel Media Inc.",Toronto,Ontario,Canada,"Other Half (The)",English,Drama,2016-11-30,33413.00,33413.00,"Recoupable Advance","Marketing Program",
2016-2017,P3,"Films S�ville Inc. (Les) / Seville Pictures Inc.",Montreal,Quebec,Canada,Pays,French,Drama,2016-11-30,79653.00,79653.00,"Recoupable Advance","Marketing Program",
2016-2017,P3,"Howie Role Productions Inc.",Vancouver,"British Columbia",Canada,"Portfolio 2016-2017 Howie Role Productions Inc.",English,Mystery/Crime/Police,2016-11-30,30000.00,15000.00,"Recoupable Advance","Development Program",
2016-2017,P3,"Howie Role Productions Inc.",Vancouver,"British Columbia",Canada,"Portfolio 2016-2017 Howie Role Productions Inc.",English,"Historical Drama",2016-11-30,15000.00,15000.00,"Recoupable Advance","Development Program",
2016-2017,P3,"Films S�ville Inc. (Les) / Seville Pictures Inc.",Montreal,Quebec,Canada,"TWO LOVERS AND A BEAR",English,Drama,2016-11-30,331810.00,331810.00,"Recoupable Advance","Marketing Program",
2016-2017,P3,"Full Plate Productions Incorporated",Toronto,Ontario,Canada,"Void (The)",English,Horror,2016-11-30,2359.00,2359.00,Contribution,"International Marketing Program",
2016-2017,P3,"Birthmarked Productions Inc.",Montreal,Quebec,Canada,Birthmarked,English,Comedy,2016-12-01,2100000.00,2100000.00,"Recoupable Advance","Production Program",
2016-2017,P3,"Chaos A Film Company Inc.",Calgary,Alberta,Canada,"Portfolio 2016-2017 Chaos a film company inc.",English,"Science fiction/Fantasy/Tale",2016-12-01,30000.00,15000.00,"Recoupable Advance","Development Program",
2016-2017,P3,"Chaos A Film Company Inc.",Calgary,Alberta,Canada,"Portfolio 2016-2017 Chaos a film company inc.",English,"Historical Drama",2016-12-01,15000.00,15000.00,"Recoupable Advance","Development Program",
2016-2017,P3,"Hill 100 Productions Inc.",Toronto,Ontario,Canada,"Portfolio 2016-2017 Hill 100 Productions Inc.",English,Thriller,2016-12-01,15000.00,15000.00,"Recoupable Advance","Development Program",
2016-2017,P3,"Hill 100 Productions Inc.",Toronto,Ontario,Canada,"Portfolio 2016-2017 Hill 100 Productions Inc.",English,Thriller,2016-12-01,30000.00,15000.00,"Recoupable Advance","Development Program",
2016-2017,P3,"Capital Motion Picture Group Inc.",Ottawa,Ontario,Canada,"Away From Everywhere",English,Drama,2016-12-02,39532.00,39532.00,"Recoupable Advance","Marketing Program",
2016-2017,P3,"Productions Pixcom Inc.",Montreal,Quebec,Canada,"Portfolio  Productions Pixcom Inc. (projet Agora)",French,Drama,2016-12-02,200000.00,200000.00,"Recoupable Advance","Development Program",
2016-2017,P3,"SEW Productions (Quebec) Inc.",Dewittville,Quebec,Canada,"Someone Else's Wedding",English,"Romantic Comedy",2016-12-02,400000.00,400000.00,Investment,"Production Program",
2016-2017,P3,"Entertainment One Films Canada Inc.",Montreal,Quebec,Canada,"Steps (The)",English,Comedy,2016-12-05,164700.00,164700.00,"Recoupable Advance","Marketing Program",
2016-2017,P3,"Rhombus Media Inc.",Toronto,Ontario,Canada,"Man Who Invented Christmas (The)",English,"Historical Drama",2016-12-06,230000.00,230000.00,"Recoupable Advance","Production Program",
2016-2017,P3,"Solofilms Inc.",Montreal,Quebec,Canada,"Portfolio 2016-2017 Solofilms Inc.",English,Drama,2016-12-06,20000.00,20000.00,"Recoupable Advance","Development Program",
2016-2017,P3,"Solofilms Inc.",Montreal,Quebec,Canada,"Portfolio 2016-2017 Solofilms Inc.",French,Drama,2016-12-06,35000.00,15000.00,"Recoupable Advance","Development Program",
2016-2017,P3,"Solofilms Inc.",Montreal,Quebec,Canada,"Portfolio 2016-2017 Solofilms Inc.",French,"Historical Drama",2016-12-06,50000.00,15000.00,"Recoupable Advance","Development Program",
2016-2017,P3,"Mongrel Media Inc.",Toronto,Ontario,Canada,"Beeba Boys",English,Drama,2016-12-07,469766.00,911625.00,"Recoupable Advance","Marketing Program","Amended contract signed  28-OCT-15"
2016-2017,P3,"Funfilm Distribution Inc.",Montreal,Quebec,Canada,"Go�t d'un pays (Le)",French,Documentary,2016-12-07,17000.00,17000.00,"Recoupable Advance","Marketing Program",
2016-2017,P3,"A71 Entertainment Inc.",Toronto,Ontario,Canada,Darken,English,"Science fiction/Fantasy/Tale",2016-12-08,80000.00,40000.00,"Recoupable Advance","Marketing Program",
2016-2017,P3,"Rob Heydon Holdings Inc.","Stoney Creek",Ontario,Canada,"Portfolio 2016-2017 Rob Heydon Holdings Inc.",English,"Historical Drama",2016-12-08,15000.00,15000.00,"Recoupable Advance","Development Program",
2016-2017,P3,"Stone Cold Productions Limited",Dartmouth,"Nova Scotia",Canada,"Portfolio 2016-2017 Stone Cold Productions Limited - 2",English,Comedy,2016-12-08,15000.00,15000.00,"Recoupable Advance","Development Program",
2016-2017,P3,"A71 Entertainment Inc.",Toronto,Ontario,Canada,"Sadie's Last Day on Earth",English,Comedy,2016-12-08,74167.00,74167.00,"Recoupable Advance","Marketing Program",
2016-2017,P3,"DCP Mystery Arts Inc.",Toronto,Ontario,Canada,"Wait Till Helen Comes",English,Thriller,2016-12-08,2739569.00,2663604.00,Investment,"Production Program","Amended contract signed  11-SEP-14"
2016-2017,P3,"Bunk 11 Pictures Inc. ",Ottawa,Ontario,Canada,"Portfolio 2016-2017 Bunk 11 Pictures Inc.",English,Horror,2016-12-09,30000.00,15000.00,"Recoupable Advance","Development Program",
2016-2017,P3,"Bunk 11 Pictures Inc. ",Ottawa,Ontario,Canada,"Portfolio 2016-2017 Bunk 11 Pictures Inc.",English,Comedy,2016-12-09,15000.00,15000.00,"Recoupable Advance","Development Program",
2016-2017,P3,"The Film Farm Inc.",Toronto,Ontario,Canada,"Portfolio 2016-2017 The Film Farm Inc.",English,Drama,2016-12-09,20000.00,20000.00,"Recoupable Advance","Development Program",
2016-2017,P3,"The Film Farm Inc.",Toronto,Ontario,Canada,"Portfolio 2016-2017 The Film Farm Inc.",English,Drama,2016-12-09,35000.00,15000.00,"Recoupable Advance","Development Program",
2016-2017,P3,"The Film Farm Inc.",Toronto,Ontario,Canada,"Portfolio 2016-2017 The Film Farm Inc.",English,Drama,2016-12-09,50000.00,15000.00,"Recoupable Advance","Development Program",
2016-2017,P3,"9320-4410 Qu�bec Inc.",Quebec,Quebec,Canada,"Pacte des anges (Le)",French,Drama,2016-12-12,8370.00,8370.00,Contribution,"International Marketing Program",
2016-2017,P3,"Mongrel Media Inc.",Toronto,Ontario,Canada,Aloft,English,Drama,2016-12-13,37291.00,124500.00,"Recoupable Advance","Marketing Program","Amended contract signed  11-MAR-16"
2016-2017,P3,"PCF Bolduc Le Film Inc.",Montreal,Quebec,Canada,"Bolduc (La)",French,"Historical Drama",2016-12-13,2100000.00,2100000.00,Investment,"Production Program",
2016-2017,P3,"Elevation Pictures Corp.",Toronto,Ontario,Canada,"Mean Dreams",English,Thriller,2016-12-13,197381.00,197381.00,"Recoupable Advance","Marketing Program",
2016-2017,P3,"Trench 11 Productions Ontario Inc.",Toronto,Ontario,Canada,"Trench 11",English,Thriller,2016-12-14,400000.00,400000.00,Investment,"Production Program",
2016-2017,P3,"1976 Productions inc.",Montreal,Quebec,Canada,"Portfolio 2016-2017 1976 Productions Inc.",French,Drama,2016-12-15,15000.00,15000.00,"Recoupable Advance","Development Program",
2016-2017,P3,"�cho M�dia Les Rois Mongols Inc.",Montreal,Quebec,Canada,"Rois mongols (Les)",French,Drama,2016-12-15,1250000.00,1250000.00,Investment,"Production Program",
2016-2017,P3,"Am�rique film inc.",Montreal,Quebec,Canada,"Portfolio 2016-2017 Amerique Film Inc.",English,Horror,2016-12-16,15000.00,15000.00,"Recoupable Advance","Development Program",
2016-2017,P3,"Films Christal, s.e.c.(Les), agissant par l'interm�diaire de son commandit�, Les Films Christal Inc",Montreal,Quebec,Canada,"Chasse-Galerie, La l�gende",French,Drama,2016-12-19,406965.00,414577.00,"Recoupable Advance","Marketing Program","Amended contract signed  03-MAR-16"
2016-2017,P3,"Octavio Is Dead Films Inc.",Toronto,Ontario,Canada,"Octavio is Dead!",English,Drama,2016-12-19,450000.00,450000.00,Investment,"Production Program",
2016-2017,P3,"Films Christal, s.e.c.(Les), agissant par l'interm�diaire de son commandit�, Les Films Christal Inc",Montreal,Quebec,Canada,"Origine des esp�ces (L')",French,Drama,2016-12-19,43875.00,44109.00,"Recoupable Advance","Marketing Program","Amended contract signed  28-APR-16"
2016-2017,P3,"Microscope inc.",Montreal,Quebec,Canada,"A Worthy Companion",English,Drama,2016-12-20,1250000.00,439730.00,Investment,"Production Program","Amended contract signed  21-MAR-14"
2016-2017,P3,"Mongrel Media Inc.",Toronto,Ontario,Canada,"Every Thing Will Be Fine",English,Drama,2016-12-20,38204.00,46613.00,"Recoupable Advance","Marketing Program","Amended contract signed  09-MAR-16"
2016-2017,P3,"9231-3683 Qu�bec inc.",Montreal,Quebec,Canada,PRANK,French,Comedy,2016-12-20,25000.00,25000.00,Investment,"Production Program",
2016-2017,P3,"Goon 2 Productions Inc.",Toronto,Ontario,Canada,"Goon: Last of the Enforcers",English,Comedy,2016-12-20,3750000.00,3500000.00,Investment,"Production Program","Amended contract signed  05-AUG-15"
2016-2017,P3,"Les Films du Tricycle Inc.","Les Bergeronnes",Quebec,Canada,"Combat au bout de la nuit",French,Documentary,2016-12-22,15000.00,15000.00,"Recoupable Advance","Marketing Program",
2016-2017,P3,"9348-8310 Qu�bec inc.",Montreal,Quebec,Canada,"De l'amour pour No�l",French,Comedy,2016-12-22,1075000.00,1075000.00,Investment,"Production Program",
2016-2017,P3,"Foundry Films Inc.",Toronto,Ontario,Canada,"Portfolio 2016-2017 Foundry Films Inc.",English,Action/Adventure,2016-12-22,23303.00,23303.00,"Recoupable Advance","Development Program",
2016-2017,P3,"Foundry Films Inc.",Toronto,Ontario,Canada,"Portfolio 2016-2017 Foundry Films Inc.",English,Action/Adventure,2016-12-22,38309.00,15006.00,"Recoupable Advance","Development Program",
2016-2017,P3,"Foundry Films Inc.",Toronto,Ontario,Canada,"Portfolio 2016-2017 Foundry Films Inc.",English,"Historical Drama",2016-12-22,75000.00,21571.00,"Recoupable Advance","Development Program",
2016-2017,P3,"Foundry Films Inc.",Toronto,Ontario,Canada,"Portfolio 2016-2017 Foundry Films Inc.",English,Drama,2016-12-22,53429.00,15120.00,"Recoupable Advance","Development Program",
2016-2017,P3,"Serendipity Point Films Inc.",Toronto,Ontario,Canada,"Portfolio 2016-2017 Serendipity Point Films Inc.",English,Thriller,2016-12-22,200000.00,18232.00,"Recoupable Advance","Development Program",
2016-2017,P3,"Serendipity Point Films Inc.",Toronto,Ontario,Canada,"Portfolio 2016-2017 Serendipity Point Films Inc.",English,Drama,2016-12-22,20160.00,20160.00,"Recoupable Advance","Development Program",
2016-2017,P3,"Serendipity Point Films Inc.",Toronto,Ontario,Canada,"Portfolio 2016-2017 Serendipity Point Films Inc.",English,Mystery/Crime/Police,2016-12-22,181768.00,54870.00,"Recoupable Advance","Development Program",
2016-2017,P3,"Serendipity Point Films Inc.",Toronto,Ontario,Canada,"Portfolio 2016-2017 Serendipity Point Films Inc.",English,Drama,2016-12-22,95160.00,75000.00,"Recoupable Advance","Development Program",
2016-2017,P3,"Serendipity Point Films Inc.",Toronto,Ontario,Canada,"Portfolio 2016-2017 Serendipity Point Films Inc.",English,"Historical Drama",2016-12-22,126898.00,31738.00,"Recoupable Advance","Development Program",
2016-2017,P3,"7086881 Canada Inc.",Montreal,Quebec,Canada,"MOBILE �TOILE",French,Drama,2016-12-23,147425.00,150000.00,"Recoupable Advance",Mini-treaties,"Amended contract signed  12-FEB-15"
2016-2017,P3,"Corporation de d�veloppement et de production ACPAV Inc.",Montreal,Quebec,Canada,"POUR VIVRE ICI",French,Drama,2016-12-23,500000.00,500000.00,"Recoupable Advance","Production Program",
2016-2017,P3,"LGDT-3D INC",Montreal,Quebec,Canada,"Snowtime! (La Guerre des tuques 3D)",French,Comedy,2016-12-23,42000.00,42000.00,Contribution,"International Marketing Program",
2016-2017,P4,"Couzin Films Inc.",Montreal,Quebec,Canada,"Portfolio 2016-2017 Couzin Films Inc.",French,Comedy,2017-01-09,15000.00,15000.00,"Recoupable Advance","Development Program",
2016-2017,P4,"Cin�maginaire inc.",Montreal,Quebec,Canada,"Portfolio 2016-2017 Cin�maginaire Inc.",French,Drama,2017-01-10,17000.00,17000.00,"Recoupable Advance","Development Program",
2016-2017,P4,"Cin�maginaire inc.",Montreal,Quebec,Canada,"Portfolio 2016-2017 Cin�maginaire Inc.",French,Drama,2017-01-10,79000.00,62000.00,"Recoupable Advance","Development Program",
2016-2017,P4,"Cin�maginaire inc.",Montreal,Quebec,Canada,"Portfolio 2016-2017 Cin�maginaire Inc.",French,Drama,2017-01-10,139000.00,60000.00,"Recoupable Advance","Development Program",
2016-2017,P4,"Cin�maginaire inc.",Montreal,Quebec,Canada,"Portfolio 2016-2017 Cin�maginaire Inc.",French,Drama,2017-01-10,200000.00,61000.00,"Recoupable Advance","Development Program",
2016-2017,P4,"Productions cin�-sc�ne inc.",Quebec,Quebec,Canada,"Portfolio 2016-2017 Productions cin�-sc�ne inc.",French,Thriller,2017-01-10,15000.00,15000.00,"Recoupable Advance","Development Program",
2016-2017,P4,"ZMA Productions Inc.",Montreal,Quebec,Canada,"Portfolio 2016-2017 ZMA Productions Inc.",French,Action/Adventure,2017-01-10,15000.00,15000.00,"Recoupable Advance","Development Program",
2016-2017,P4,"Eagle Vision Inc.",Winnipeg,Manitoba,Canada,"Portfolio 2016-2017 Eagle Vision Inc.",English,Comedy,2017-01-12,15000.00,15000.00,"Recoupable Advance","Development Program",
2016-2017,P4,"Eagle Vision Inc.",Winnipeg,Manitoba,Canada,"Portfolio 2016-2017 Eagle Vision Inc.",English,"Historical Drama",2017-01-12,30000.00,15000.00,"Recoupable Advance","Development Program",
2016-2017,P4,"Microclimat Films Inc.",Montreal,Quebec,Canada,"Portfolio 2016-2017 Microclimat Films inc.",French,Drama,2017-01-12,15000.00,15000.00,"Recoupable Advance","Development Program",
2016-2017,P4,"Middle Child Films Inc.",Toronto,Ontario,Canada,"Portfolio 2016-2017 Middle Child Films Inc.",English,Thriller,2017-01-12,15000.00,15000.00,"Recoupable Advance","Development Program",
2016-2017,P4,"SHERPAS FILMS INC.",Montreal,Quebec,Canada,"Portfolio 2016-2017 SHERPAS FILMS INC.",French,Drama,2017-01-12,15000.00,15000.00,"Recoupable Advance","Development Program",
2016-2017,P4,"8888256 Canada Inc.",Toronto,Ontario,Canada,"O, Brazen Age",English,Drama,2017-01-17,12000.00,12000.00,"Recoupable Advance","Marketing Program",
2016-2017,P4,"Conquering Lion Pictures Inc.",Toronto,Ontario,Canada,"Portfolio 2016-2017 Conquering Lion Pictures Inc.",English,"Historical Drama",2017-01-17,30000.00,15000.00,"Recoupable Advance","Development Program",
2016-2017,P4,"Conquering Lion Pictures Inc.",Toronto,Ontario,Canada,"Portfolio 2016-2017 Conquering Lion Pictures Inc.",French,Drama,2017-01-17,15000.00,15000.00,"Recoupable Advance","Development Program",
2016-2017,P4,"DCP Mystery Arts Inc.",Toronto,Ontario,Canada,"Portfolio 2016-2017 DCP Mystery Arts Inc.",English,Action/Adventure,2017-01-17,21001.00,21001.00,"Recoupable Advance","Development Program",
2016-2017,P4,"DCP Mystery Arts Inc.",Toronto,Ontario,Canada,"Portfolio 2016-2017 DCP Mystery Arts Inc.",English,Drama,2017-01-17,42002.00,21001.00,"Recoupable Advance","Development Program",
2016-2017,P4,"DCP Mystery Arts Inc.",Toronto,Ontario,Canada,"Portfolio 2016-2017 DCP Mystery Arts Inc.",English,"Historical Drama",2017-01-17,200000.00,109892.00,"Recoupable Advance","Development Program",
2016-2017,P4,"DCP Mystery Arts Inc.",Toronto,Ontario,Canada,"Portfolio 2016-2017 DCP Mystery Arts Inc.",English,Drama,2017-01-17,69107.00,27105.00,"Recoupable Advance","Development Program",
2016-2017,P4,"DCP Mystery Arts Inc.",Toronto,Ontario,Canada,"Portfolio 2016-2017 DCP Mystery Arts Inc.",English,Drama,2017-01-17,90108.00,21001.00,"Recoupable Advance","Development Program",
2016-2017,P4,"V�locit� International inc.",Quebec,Quebec,Canada,"Portfolio 2016-2017 V�locit� International inc.",French,Mystery/Crime/Police,2017-01-17,15000.00,15000.00,"Recoupable Advance","Development Program",
2016-2017,P4,"Prodigals Productions Inc.",Vancouver,"British Columbia",Canada,Prodigals,English,Drama,2017-01-17,50000.00,50000.00,Investment,"Production Program",
2016-2017,P4,"Darius Films Inc.",Toronto,Ontario,Canada,"Portfolio 2016-2017 Darius Films Inc.",English,Drama,2017-01-18,40000.00,25000.00,"Recoupable Advance","Development Program",
2016-2017,P4,"Darius Films Inc.",Toronto,Ontario,Canada,"Portfolio 2016-2017 Darius Films Inc.",English,Horror,2017-01-18,55000.00,15000.00,"Recoupable Advance","Development Program",
2016-2017,P4,"Darius Films Inc.",Toronto,Ontario,Canada,"Portfolio 2016-2017 Darius Films Inc.",English,Comedy,2017-01-18,15000.00,15000.00,"Recoupable Advance","Development Program",
2016-2017,P4,"Les Films du Boulevard Inc.",Montreal,Quebec,Canada,"Portfolio 2016-2017 Films du Boulevard Inc.",French,Drama,2017-01-18,15000.00,15000.00,"Recoupable Advance","Development Program",
2016-2017,P4,"Films S�ville Inc. (Les) / Seville Pictures Inc.",Montreal,Quebec,Canada,"Juste la fin du monde",French,Drama,2017-01-19,100000.00,100000.00,Contribution,"International Marketing Program",
2016-2017,P4,"Funco Ltd.",Calgary,Alberta,Canada,"Portfolio 2016-2017 Funco Ltd.",English,Comedy,2017-01-24,15000.00,15000.00,"Recoupable Advance","Development Program",
2016-2017,P4,"Goodbye Productions Inc.",Vancouver,"British Columbia",Canada,"Portfolio 2016-2017 Goodbye Productions Inc.",English,Drama,2017-01-24,15000.00,15000.00,"Recoupable Advance","Development Program",
2016-2017,P4,"Media Connections Film Inc.","St. John's",Newfoundland/Labrad.,Canada,"Portfolio 2016-2017 Media Connections Film Inc.",English,Drama,2017-01-24,15000.00,15000.00,"Recoupable Advance","Development Program",
2016-2017,P4,"Willis Sweete Productions Inc.",Toronto,Ontario,Canada,"Portfolio 2016-2017 Willis Sweete Productions Inc.",English,"Historical Drama",2017-01-24,15000.00,15000.00,"Recoupable Advance","Development Program",
2016-2017,P4,"0250636 B.C. Ltd.",Vancouver,"British Columbia",Canada,"Portfolio 2016-2017 0250636 B.C. Ltd.",English,Drama,2017-01-25,15000.00,15000.00,"Recoupable Advance","Development Program",
2016-2017,P4,"Interstate 80 Entertainment Inc.",Calgary,Alberta,Canada,"Portfolio 2016-2017 Interstate 80 Entertainment Inc.",English,"Science fiction/Fantasy/Tale",2017-01-25,15000.00,15000.00,"Recoupable Advance","Development Program",
2016-2017,P4,"Manifold Pictures Inc.",Calgary,Alberta,Canada,"Portfolio 2016-2017 Manifold Pictures Inc.",English,"Historical Drama",2017-01-25,15000.00,15000.00,"Recoupable Advance","Development Program",
2016-2017,P4,"Pearl Street Films Ltd.",Hamilton,Ontario,Canada,"Portfolio 2016-2017 Pearl Street Films Ltd.",English,Drama,2017-01-25,15000.00,15000.00,"Recoupable Advance","Development Program",
2016-2017,P4,"White Pine Pictures Inc.",Toronto,Ontario,Canada,"All Governments Lie: Truth, Deception and the Spirit of I.F. Stone",English,Documentary,2017-01-26,37500.00,37500.00,"Recoupable Advance","Marketing Program",
2016-2017,P4,"Raven Banner Releasing Inc.",Toronto,Ontario,Canada,"Northlander (The)",English,"Science fiction/Fantasy/Tale",2017-01-26,47250.00,47250.00,"Recoupable Advance","Marketing Program",
2016-2017,P4,"A Film Monkey Production Inc.",Toronto,Ontario,Canada,"Portfolio 2016-2017 A Film Monkey Production Inc.",English,Mystery/Crime/Police,2017-01-26,15000.00,15000.00,"Recoupable Advance","Development Program",
2016-2017,P4,"A71 Productions Inc.",Toronto,Ontario,Canada,"Portfolio 2016-2017 A71 Productions Inc.",English,Thriller,2017-01-26,15000.00,15000.00,"Recoupable Advance","Development Program",
2016-2017,P4,"Captain Canuck Feature Film One Inc.",Toronto,Ontario,Canada,"Portfolio 2016-2017 Captain Canuck Feature Film One Inc.",English,Action/Adventure,2017-01-26,15000.00,15000.00,"Recoupable Advance","Development Program",
2016-2017,P4,"Six Island Productions Inc.",Toronto,Ontario,Canada,"Portfolio 2016-2017 Six Island Productions Inc.",English,Horror,2017-01-26,15000.00,15000.00,"Recoupable Advance","Development Program",
2016-2017,P4,"Viddywell Films Inc.",Toronto,Ontario,Canada,"Portfolio 2016-2017 Viddywell Films Inc.",English,Thriller,2017-01-26,15000.00,15000.00,"Recoupable Advance","Development Program",
2016-2017,P4,"Chantale Pag� consultation (L'Atelier de distribution)",Montreal,Quebec,Canada,"9 Le film",French,Comedy,2017-01-27,150000.00,150000.00,"Recoupable Advance","Marketing Program",
2016-2017,P4,"South Creek Pictures Inc.","Lions Bay","British Columbia",Canada,"Portfolio 2016-2017 South Creek Pictures Inc.",English,Action/Adventure,2017-01-27,15000.00,15000.00,"Recoupable Advance","Development Program",
2016-2017,P4,"Julijette Inc.",Winnipeg,Manitoba,Canada,"Portfolio 2016-2017 julijette inc.",English,Drama,2017-01-27,15000.00,15000.00,"Recoupable Advance","Development Program",
2016-2017,P4,"2033161 Ontario Limited d.b.a. Films We Like",Toronto,Ontario,Canada,WEIRDOS,English,Drama,2017-01-27,44223.00,44223.00,"Recoupable Advance","Marketing Program",
2016-2017,P4,"New Real Films Inc.",Toronto,Ontario,Canada,"Born To Be Blue",English,Drama,2017-01-30,25000.00,25000.00,Contribution,"International Marketing Program",
2016-2017,P4,"Raven Banner Releasing Inc.",Toronto,Ontario,Canada,Destroyer,English,Drama,2017-01-30,95925.00,95925.00,"Recoupable Advance","Marketing Program",
2016-2017,P4,"Isuma Distribution International Ltd.",Montreal,Quebec,Canada,"Maliglutit (Searchers)",English,Drama,2017-01-30,199202.00,37390.00,"Recoupable Advance","Marketing Program","Amended contract signed  30-SEP-16"
2016-2017,P4,"Mongrel Media Inc.",Toronto,Ontario,Canada,Maudie,English,Drama,2017-01-30,1105725.00,1105725.00,"Recoupable Advance","Marketing Program",
2016-2017,P4,"Aiken Heart Films Inc.",Toronto,Ontario,Canada,"Portfolio 2016-2017 Aiken Heart Films Inc.",English,Drama,2017-01-30,15000.00,15000.00,"Recoupable Advance","Development Program",
2016-2017,P4,"Fella Films Inc. ",Kanata,Ontario,Canada,"Portfolio 2016-2017 Fella Films Inc.",English,Comedy,2017-01-30,15000.00,15000.00,"Recoupable Advance","Development Program",
2016-2017,P4,"Hoggwild Films Inc.",Victoria,"British Columbia",Canada,"Portfolio 2016-2017 Hoggwild Films Inc.",English,Drama,2017-01-30,15000.00,15000.00,"Recoupable Advance","Development Program",
2016-2017,P4,"Elevation Pictures Corp.",Toronto,Ontario,Canada,Zoom,English,Drama,2017-01-30,76602.00,76602.00,"Recoupable Advance","Marketing Program",
2016-2017,P4,"Sienna Films Inc.",Toronto,Ontario,Canada,"Portfolio 2016-2017 Sienna Films Inc.",English,Drama,2017-01-31,15000.00,15000.00,"Recoupable Advance","Development Program",
2016-2017,P4,"Sienna Films Inc.",Toronto,Ontario,Canada,"Portfolio 2016-2017 Sienna Films Inc.",English,Drama,2017-01-31,30000.00,15000.00,"Recoupable Advance","Development Program",
2016-2017,P4,"Sienna Films Inc.",Toronto,Ontario,Canada,"Portfolio 2016-2017 Sienna Films Inc.",English,Drama,2017-01-31,105000.00,75000.00,"Recoupable Advance","Development Program",
2016-2017,P4,"Yer Dead Productions Inc.",Halifax,"Nova Scotia",Canada,"Portfolio 2016-2017 Yer Dead Productions Inc.",English,Thriller,2017-01-31,50000.00,35000.00,"Recoupable Advance","Development Program",
2016-2017,P4,"Yer Dead Productions Inc.",Halifax,"Nova Scotia",Canada,"Portfolio 2016-2017 Yer Dead Productions Inc.",English,Action/Adventure,2017-01-31,15000.00,15000.00,"Recoupable Advance","Development Program",
2016-2017,P4,"9730788 Canada Inc.",Montreal,Quebec,Canada,"Mr. Roach",French,Drama,2017-02-01,1140000.00,1140000.00,Investment,"Production Program",
2016-2017,P4,"Fluent Films Inc.",Montreal,Quebec,Canada,"Portfolio 2016-2017 Fluent Films Inc.",English,Drama,2017-02-01,15000.00,15000.00,"Recoupable Advance","Development Program",
2016-2017,P4,"Raven Banner Releasing Inc.",Toronto,Ontario,Canada,"Stegman Is Dead",English,Comedy,2017-02-01,74250.00,74250.00,"Recoupable Advance","Marketing Program",
2016-2017,P4,"Productions Ajoup� Lt�e (Les)",Longueuil,Quebec,Canada,"Portfolio 2016-2017 Productions Ajoup� Lt�e (Les)",English,Drama,2017-02-02,15000.00,15000.00,"Recoupable Advance","Development Program",
2016-2017,P4,"Zoofilms Inc.",Mansonville,Quebec,Canada,"Portfolio 2016-2017 Zoofilms Inc.",French,Musical,2017-02-03,15000.00,15000.00,"Recoupable Advance","Development Program",
2016-2017,P4,"Montefiore Films Inc.",Sudbury,Ontario,Canada,"Portfolio 2016-2017 Montefiore Films Inc.",English,Thriller,2017-02-06,15000.00,15000.00,"Recoupable Advance","Development Program",
2016-2017,P4,"Neophyte Productions Inc.",Toronto,Ontario,Canada,"Portfolio 2016-2017 Neophyte Productions Inc.",English,Comedy,2017-02-06,15000.00,15000.00,"Recoupable Advance","Development Program",
2016-2017,P4,"TimeLapse Pictures Productions Inc.",Toronto,Ontario,Canada,"Portfolio 2016-2017 TimeLapse Pictures Productions Inc.",English,"Science fiction/Fantasy/Tale",2017-02-06,15000.00,15000.00,"Recoupable Advance","Development Program",
2016-2017,P4,"YN Films Inc.",Toronto,Ontario,Canada,"Portfolio 2016-2017 YN Films Inc.",English,Comedy,2017-02-06,15000.00,15000.00,"Recoupable Advance","Development Program",
2016-2017,P4,"Farpoint Films Inc.",Winnipeg,Manitoba,Canada,"Portfolio 2016-2017 Farpoint Films Inc.",English,Thriller,2017-02-07,30000.00,15000.00,"Recoupable Advance","Development Program",
2016-2017,P4,"Farpoint Films Inc.",Winnipeg,Manitoba,Canada,"Portfolio 2016-2017 Farpoint Films Inc.",English,Horror,2017-02-07,15000.00,15000.00,"Recoupable Advance","Development Program",
2016-2017,P4,"Resonance Films Inc. ",Vancouver,"British Columbia",Canada,"Portfolio 2016-2017 Resonance Films Inc.",English,Comedy,2017-02-07,15000.00,15000.00,"Recoupable Advance","Development Program",
2016-2017,P4,"Screen Siren Pictures Inc.",Vancouver,"British Columbia",Canada,"Portfolio 2016-2017 Screen Siren Pictures Inc.",English,"Romantic Comedy",2017-02-07,15000.00,15000.00,"Recoupable Advance","Development Program",
2016-2017,P4,"Industry Pictures Inc.",Toronto,Ontario,Canada,"Portfolio 2016-2017 Industry Pictures Inc.",English,Drama,2017-02-09,15000.00,15000.00,"Recoupable Advance","Development Program",
2016-2017,P4,"Funfilm Distribution Inc.",Montreal,Quebec,Canada,"Maudite poutine",French,Drama,2017-02-10,28000.00,28000.00,"Recoupable Advance","Marketing Program",
2016-2017,P4,"January Films Ltd.",Toronto,Ontario,Canada,"Portfolio 2016-2017 January Films Ltd. - 2",English,"Historical Drama",2017-02-10,75000.00,75000.00,"Recoupable Advance","Development Program",
2016-2017,P4,"Clique Pictures Inc.",Toronto,Ontario,Canada,"Portfolio 2016-2017 Clique Pictures Inc.",English,"Science fiction/Fantasy/Tale",2017-02-13,15000.00,15000.00,"Recoupable Advance","Development Program",
2016-2017,P4,"Gearshift Films Inc.",Toronto,Ontario,Canada,"Portfolio 2016-2017 Gearshift Films Inc.",English,Drama,2017-02-13,15000.00,15000.00,"Recoupable Advance","Development Program",
2016-2017,P4,"Item 7 Copro inc",Montreal,Quebec,Canada,"Fils de Jean (Le)",French,Drama,2017-02-14,2968.00,2968.00,Contribution,"International Marketing Program",
2016-2017,P4,"Meditation Park Film Ltd. ",Vancouver,"British Columbia",Canada,"Meditation Park",English,Drama,2017-02-15,76290.00,76290.00,"Recoupable Advance","Production Program",
2016-2017,P4,"Elevation Pictures Corp.",Toronto,Ontario,Canada,"Into The Forest",English,Drama,2017-02-16,232136.00,232136.00,"Recoupable Advance","Marketing Program",
2016-2017,P4,"Films S�ville Inc. (Les) / Seville Pictures Inc.",Montreal,Quebec,Canada,"Juste la fin du monde",French,Drama,2017-02-16,25000.00,25000.00,Contribution,"International Marketing Program",
2016-2017,P4,"Brightlight Pictures Development Inc.",Burnaby,"British Columbia",Canada,"Portfolio 2016-2017 Brightlight Pictures Development Inc.",English,Drama,2017-02-16,15000.00,15000.00,"Recoupable Advance","Development Program",
2016-2017,P4,"Funfilm Distribution Inc.",Montreal,Quebec,Canada,"Cyclotron (Le)",French,"Historical Drama",2017-02-17,32000.00,32000.00,"Recoupable Advance","Marketing Program",
2016-2017,P4,"Films S�ville Inc. (Les) / Seville Pictures Inc.",Montreal,Quebec,Canada,NELLY,French,Drama,2017-02-17,203546.00,203546.00,"Recoupable Advance","Marketing Program",
2016-2017,P4,"H20 Motion Pictures Inc.",Toronto,Ontario,Canada,"Portfolio 2016-2017 H20 Motion Pictures Inc.",English,Drama,2017-02-17,15000.00,15000.00,"Recoupable Advance","Development Program",
2016-2017,P4,"Kunuk Cohn Productions Inc.",Montreal,Quebec,Canada,"Portfolio 2016-2017 Kunuk Cohn Productions Inc.",English,"Historical Drama",2017-02-17,30000.00,30000.00,"Recoupable Advance","Development Program",
2016-2017,P4,"Possibles M�dia inc.",Montreal,Quebec,Canada,"Portfolio 2016-2017 Possibles M�dia inc.",French,Drama,2017-02-17,45000.00,15000.00,"Recoupable Advance","Development Program",
2016-2017,P4,"Possibles M�dia inc.",Montreal,Quebec,Canada,"Portfolio 2016-2017 Possibles M�dia inc.",English,Drama,2017-02-17,15000.00,15000.00,"Recoupable Advance","Development Program",
2016-2017,P4,"Possibles M�dia inc.",Montreal,Quebec,Canada,"Portfolio 2016-2017 Possibles M�dia inc.",English,Drama,2017-02-17,30000.00,15000.00,"Recoupable Advance","Development Program",
2016-2017,P4,"Realm Productions & Advertising Inc.","St. John","New Brunswick",Canada,"Portfolio 2016-2017 Realm Productions & Advertising Inc.",English,Horror,2017-02-17,15000.00,15000.00,"Recoupable Advance","Development Program",
2016-2017,P4,"Chantale Pag� consultation (L'Atelier de distribution)",Montreal,Quebec,Canada,"�rotisme et le vieil �ge (L')",French,Documentary,2017-02-17,25000.00,25000.00,"Recoupable Advance","Marketing Program",
2016-2017,P4,"9348-4566 Qu�bec Inc.",Montreal,Quebec,Canada,"Junior Majeur",French,Drama,2017-02-20,2500000.00,2500000.00,Investment,"Production Program",
2016-2017,P4,"Meditation Park Film Ltd. ",Vancouver,"British Columbia",Canada,"Meditation Park",English,Drama,2017-02-21,0.00,76290.00,"Recoupable Advance","Production Program","Amended contract signed  15-FEB-17"
2016-2017,P4,"Buffalo Gal Pictures Inc.",Winnipeg,Manitoba,Canada,"Portfolio 2016-2017 Buffalo Gal Pictures Inc.",English,"Historical Drama",2017-02-21,46500.00,31500.00,"Recoupable Advance","Development Program",
2016-2017,P4,"Buffalo Gal Pictures Inc.",Winnipeg,Manitoba,Canada,"Portfolio 2016-2017 Buffalo Gal Pictures Inc.",English,Drama,2017-02-21,15000.00,15000.00,"Recoupable Advance","Development Program",
2016-2017,P4,"Buffalo Gal Pictures Inc.",Winnipeg,Manitoba,Canada,"Portfolio 2016-2017 Buffalo Gal Pictures Inc.",English,"Historical Drama",2017-02-21,80000.00,33500.00,"Recoupable Advance","Development Program",
2016-2017,P4,"Buffalo Gal Pictures Inc.",Winnipeg,Manitoba,Canada,"Portfolio 2016-2017 Buffalo Gal Pictures Inc.",English,"Science fiction/Fantasy/Tale",2017-02-21,95000.00,15000.00,"Recoupable Advance","Development Program",
2016-2017,P4,"Cineast Screen Development Limited",Halifax,"Nova Scotia",Canada,"Portfolio 2016-2017 Cineast Screen Development Limited",English,Thriller,2017-02-21,15000.00,15000.00,"Recoupable Advance","Development Program",
2016-2017,P4,"Devonshire Productions Inc.",Toronto,Ontario,Canada,"Portfolio 2016-2017 Devonshire Productions Inc.",English,Drama,2017-02-21,15000.00,15000.00,"Recoupable Advance","Development Program",
2016-2017,P4,"Snitch Pictures Inc.",Toronto,Ontario,Canada,"Portfolio 2016-2017 Snitch Pictures Inc.",English,Comedy,2017-02-21,15000.00,15000.00,"Recoupable Advance","Development Program",
2016-2017,P4,"Snitch Pictures Inc.",Toronto,Ontario,Canada,"Portfolio 2016-2017 Snitch Pictures Inc.",English,Horror,2017-02-21,30000.00,15000.00,"Recoupable Advance","Development Program",
2016-2017,P4,"Angelique's Isle Productions Inc.",Mississauga,Ontario,Canada,"Angelique's Isle  ",English,"Historical Drama",2017-02-22,600000.00,600000.00,Investment,"Production Program",
2016-2017,P4,"Elevation Pictures Corp.",Toronto,Ontario,Canada,"Below Her Mouth",English,Drama,2017-02-22,367599.00,367599.00,"Recoupable Advance","Marketing Program",
2016-2017,P4,"Meditation Park Film Ltd. ",Vancouver,"British Columbia",Canada,"Meditation Park",English,Drama,2017-02-22,825000.00,825000.00,Investment,"Production Program",
2016-2017,P4,"BD Animation Inc.",Winnipeg,Manitoba,Canada,Ozzy,English,Action/Adventure,2017-02-23,400000.00,400000.00,Investment,"Production Program",
2016-2017,P4,"Elevation Pictures Corp.",Toronto,Ontario,Canada,"Closet Monster",English,Drama,2017-02-24,203463.00,214900.00,"Recoupable Advance","Marketing Program","Amended contract signed  04-OCT-16"
2016-2017,P4,"Picture Plant Limited",Lunenburg,"Nova Scotia",Canada,"Portfolio 2016-2017 Picture Plant Limited",English,"Historical Drama",2017-02-24,15000.00,15000.00,"Recoupable Advance","Development Program",
2016-2017,P4,"Elevation Pictures Corp.",Toronto,Ontario,Canada,River,English,Thriller,2017-02-24,97874.00,97874.00,"Recoupable Advance","Marketing Program",
2016-2017,P4,"Momentum Pictures (Canada), Inc.",Toronto,Ontario,Canada,"Milton's Secret",English,Drama,2017-02-27,71421.00,71421.00,"Recoupable Advance","Marketing Program",
2016-2017,P4,"Axia Films inc.",Montreal,Quebec,Canada,"Louise en hiver",French,Drama,2017-02-28,33912.00,33912.00,"Recoupable Advance","Marketing Program",
2016-2017,P4,"Darius - Padre Productions Inc.",Toronto,Ontario,Canada,"Padre (The)",English,Drama,2017-03-01,1500000.00,1500000.00,Investment,"Production Program",
2016-2017,P4,"A71 Entertainment Inc.",Toronto,Ontario,Canada,"Skyjacker's Tale (The)",English,Documentary,2017-03-01,37000.00,37000.00,"Recoupable Advance","Marketing Program",
2016-2017,P4,"Mongrel Media Inc.",Toronto,Ontario,Canada,"Window Horses",English,Drama,2017-03-01,143625.00,143625.00,"Recoupable Advance","Marketing Program",
2016-2017,P4,"Films S�ville Inc. (Les) / Seville Pictures Inc.",Montreal,Quebec,Canada,"Fils de Jean (Le)",French,Drama,2017-03-03,47033.00,47033.00,"Recoupable Advance","Marketing Program",
2016-2017,P4,"Invisible Light Productions Manitoba Inc.",Winnipeg,Manitoba,Canada,"Into Invisible Light",English,Drama,2017-03-03,300000.00,300000.00,Investment,"Production Program",
2016-2017,P4,"Darius - Padre Productions Inc.",Toronto,Ontario,Canada,"Padre (The)",English,Drama,2017-03-03,0.00,119280.00,"Recoupable Advance","Production Program","Amended contract signed  16-NOV-16"
2016-2017,P4,"Films S�ville Inc. (Les) / Seville Pictures Inc.",Montreal,Quebec,Canada,"P�re fils th�rapie",French,Comedy,2017-03-03,43535.00,43535.00,"Recoupable Advance","Marketing Program",
2016-2017,P4,"Raven Banner Releasing Inc.",Toronto,Ontario,Canada,"Considering Love and Other Magic",English,Drama,2017-03-07,101700.00,101700.00,"Recoupable Advance","Marketing Program",
2016-2017,P4,"Karma Film Inc.",Saskatoon,Saskatchewan,Canada,"Portfolio 2016-2017 Karma Film Inc.",English,Drama,2017-03-08,15000.00,15000.00,"Recoupable Advance","Development Program",
2016-2017,P4,"Bad Astronaut Inc.",Halifax,"Nova Scotia",Canada,"Hopeless (Romantic)",English,"Romantic Comedy",2017-03-09,450000.00,450000.00,Investment,"Production Program",
2016-2017,P4,"Alyson Richards Productions Inc.",Hamilton,Ontario,Canada,"Portfolio 2016-2017 Alyson Richards Productions Inc.",English,"Romantic Comedy",2017-03-09,15000.00,15000.00,"Recoupable Advance","Development Program",
2016-2017,P4,"Voyelles Plages Inc.",Montreal,Quebec,Canada,"TWENTIETH CENTURY (THE)",English,"Historical Drama",2017-03-09,500000.00,500000.00,Investment,"Production Program",
2016-2017,P4," SPF (TBS) Productions Inc.",Toronto,Ontario,Canada,"Through Black Spruce",English,Drama,2017-03-09,2800000.00,2800000.00,Investment,"Production Program",
2016-2017,P4,"Raven Banner Releasing Inc.",Toronto,Ontario,Canada,"Todd & The Book of Pure Evil: The End of The End",English,Comedy,2017-03-09,19350.00,19350.00,"Recoupable Advance","Marketing Program",
2016-2017,P4,"White Pine Pictures Inc.",Toronto,Ontario,Canada,"When the Universe Sings: The Spiritual Journey of Lawren Harris",English,Documentary,2017-03-09,28050.00,28050.00,"Recoupable Advance","Marketing Program",
2016-2017,P4,"Bah Humbug Films Inc.",Toronto,Ontario,Canada,"Man Who Invented Christmas (The)",English,"Historical Drama",2017-03-10,1225000.00,1225000.00,Investment,"Production Program",
2016-2017,P4,"Rhombus Media Inc.",Toronto,Ontario,Canada,"Man Who Invented Christmas (The)",English,"Historical Drama",2017-03-10,0.00,230000.00,"Recoupable Advance","Production Program","Amended contract signed  06-DEC-16"
2016-2017,P4,"Never Saw It Coming Productions Inc.",Toronto,Ontario,Canada,"Never Saw It Coming",English,Thriller,2017-03-10,350000.00,350000.00,Investment,"Production Program",
2016-2017,P4,"Jobro Productions Inc.",Toronto,Ontario,Canada,"Portfolio 2016-2017 Jobro Productions Inc.",English,Mystery/Crime/Police,2017-03-13,15000.00,15000.00,"Recoupable Advance","Development Program",
2016-2017,P4,"Mongrel Media Inc.",Toronto,Ontario,Canada,Unless,English,Drama,2017-03-14,76725.00,76725.00,"Recoupable Advance","Marketing Program",
2016-2017,P4,"9152-3068 Qu�bec Inc. ",Montreal,Quebec,Canada,"Jardinier (Le) / The Gardener",French,Documentary,2017-03-15,12312.00,12312.00,"Recoupable Advance","Marketing Program",
2016-2017,P4,"Story Engine Pictures Inc.",Halifax,"Nova Scotia",Canada,"Portfolio 2016-2017 Story Engine Pictures Inc.",English,Drama,2017-03-15,30000.00,15000.00,"Recoupable Advance","Development Program",
2016-2017,P4,"Story Engine Pictures Inc.",Halifax,"Nova Scotia",Canada,"Portfolio 2016-2017 Story Engine Pictures Inc.",English,Comedy,2017-03-15,15000.00,15000.00,"Recoupable Advance","Development Program",
2016-2017,P4,"Breadwinner Canada Inc.",Toronto,Ontario,Canada,"Breadwinner (The)",English,Drama,2017-03-16,1800000.00,1650000.00,Investment,"Production Program","Amended contract signed  26-FEB-16"
2016-2017,P4,"Devout Productions Ltd.",Victoria,"British Columbia",Canada,"Devout (The)",English,Drama,2017-03-16,30250.00,30250.00,"Recoupable Advance","Marketing Program",
2016-2017,P4,"Films S�ville Inc. (Les) / Seville Pictures Inc.",Montreal,Quebec,Canada,IQALUIT,French,Drama,2017-03-16,77339.00,77339.00,"Recoupable Advance","Marketing Program",
2016-2017,P4,"Les Films Rivi�re inc.",Montreal,Quebec,Canada,"Restless River",English,Drama,2017-03-20,750000.00,750000.00,"Investment, Recoupable Advance","Production Program",
2016-2017,P4,"Plausible Communications Corporation d/b/a Prospero Pictures",Toronto,Ontario,Canada,"Portfolio 2014-2015 Plausible Communications Corporation",English,"Science fiction/Fantasy/Tale",2017-03-22,176725.00,24640.00,"Recoupable Advance","Development Program","Amended contract signed  02-MAR-15"
2016-2017,P4,"Films S�ville Inc. (Les) / Seville Pictures Inc.",Montreal,Quebec,Canada,"Ballerina ",English,Drama,2017-03-23,1222370.00,1222370.00,"Recoupable Advance","Marketing Program",
2016-2017,P4,"Films Christal, s.e.c.(Les), agissant par l'interm�diaire de son commandit�, Les Films Christal Inc",Montreal,Quebec,Canada,"C'est le coeur qui meurt en dernier",French,Drama,2017-03-23,169046.00,169046.00,"Recoupable Advance","Marketing Program",
2016-2017,P4,"Terrifying Movie Inc.",Halifax,"Nova Scotia",Canada,"Halloween Party",English,Horror,2017-03-23,500000.00,450000.00,Investment,"Production Program","Amended contract signed  25-FEB-16"
2016-2017,P4,"Mongrel Media Inc.",Toronto,Ontario,Canada,"Mostly Sunny",English,Documentary,2017-03-23,195000.00,195000.00,"Recoupable Advance","Marketing Program",
2016-2017,P4,"The New Romantic Inc.",Vancouver,"British Columbia",Canada,"The New Romantic (formerly The Undergraduate)",English,Comedy,2017-03-23,350000.00,350000.00,Investment,"Production Program",
2016-2017,P4,"Films S�ville Inc. (Les) / Seville Pictures Inc.",Montreal,Quebec,Canada,"�a sent la coupe",French,Drama,2017-03-23,240867.00,240867.00,"Recoupable Advance","Marketing Program",
2016-2017,P4,"A71 Entertainment Inc.",Toronto,Ontario,Canada,Chokeslam,English,"Romantic Comedy",2017-03-24,82000.00,82000.00,"Recoupable Advance","Marketing Program",
2016-2017,P4,"1 Degree Pictures Inc.",Toronto,Ontario,Canada,"Portfolio 2016-2017 1 Degree Pictures Inc.",English,"Romantic Comedy",2017-03-24,15000.00,15000.00,"Recoupable Advance","Development Program",
2016-2017,P4,"SuperGrid Film Productions Inc.",Regina,Saskatchewan,Canada,Supergrid,English,Action/Adventure,2017-03-24,350000.00,350000.00,Investment,"Production Program",
2016-2017,P4,"Le Film Happy Face Inc.",Montreal,Quebec,Canada,"HAPPY FACE",English,Drama,2017-03-27,650000.00,650000.00,"Investment, Recoupable Advance","Production Program",
2016-2017,P4,"Artesian Films Inc.",Montreal,Quebec,Canada,"Putti-sur la route de J�rusalem",French,Documentary,2017-03-28,15000.00,15000.00,"Recoupable Advance",Mini-treaties,
2016-2017,P4,"Productions Dixie Inc. (les)",Montreal,Quebec,Canada,"Out Late",English,Comedy,2017-03-29,1500000.00,1500000.00,Investment,"Production Program",
2016-2017,P4,"Plausible Communications Corporation d/b/a Prospero Pictures",Toronto,Ontario,Canada,"Portfolio 2016-2017 Plausible Communications Corporation",English,Drama,2017-03-29,61235.00,33518.00,"Recoupable Advance","Development Program",
2016-2017,P4,"Plausible Communications Corporation d/b/a Prospero Pictures",Toronto,Ontario,Canada,"Portfolio 2016-2017 Plausible Communications Corporation",English,Drama,2017-03-29,105527.00,44292.00,"Recoupable Advance","Development Program",
2016-2017,P4,"Plausible Communications Corporation d/b/a Prospero Pictures",Toronto,Ontario,Canada,"Portfolio 2016-2017 Plausible Communications Corporation",English,Comedy,2017-03-29,27717.00,27717.00,"Recoupable Advance","Development Program",
2016-2017,P4,"Plausible Communications Corporation d/b/a Prospero Pictures",Toronto,Ontario,Canada,"Portfolio 2016-2017 Plausible Communications Corporation",English,"Historical Drama",2017-03-29,199043.00,42820.00,"Recoupable Advance","Development Program",
2016-2017,P4,"Plausible Communications Corporation d/b/a Prospero Pictures",Toronto,Ontario,Canada,"Portfolio 2016-2017 Plausible Communications Corporation",English,Drama,2017-03-29,156223.00,50696.00,"Recoupable Advance","Development Program",
2016-2017,P4,"Sorry For Your Loss Productions Inc.",Winnipeg,Manitoba,Canada,"Sorry For Your Loss",English,Comedy,2017-03-29,350000.00,350000.00,"Investment, Recoupable Advance","Production Program",
2016-2017,P4,"Midnight Lamp Films Inc.",Toronto,Ontario,Canada,"Stairs (The)",English,Documentary,2017-03-29,21432.00,21432.00,"Recoupable Advance","Marketing Program",
2016-2017,P4,"Gandy's Rock Productions Inc.",Vancouver,"British Columbia",Canada,"Anthem of a Reluctant Prophet",English,Drama,2017-03-30,500000.00,500000.00,Investment,"Production Program",
2016-2017,P4,"Triple M Productions Inc.","St. John's",Newfoundland/Labrad.,Canada,"Audience of Chairs (An)",English,Drama,2017-03-30,750000.00,750000.00,Investment,"Production Program",
2016-2017,P4,"102017920 Saskatchewan Inc.",Saskatoon,Saskatchewan,Canada,Brotherhood,English,"Historical Drama",2017-03-30,500000.00,500000.00,Investment,"Production Program",
2016-2017,P4,"Pizza Lovers Productions Ltd.",Oakville,Ontario,Canada,"Little Italy",English,"Romantic Comedy",2017-03-30,3970000.00,3970000.00,Investment,"Production Program",
2016-2017,P4,"Steady Films Inc.",Vancouver,"British Columbia",Canada,"Never Steady, Never Still",English,Drama,2017-03-30,330000.00,250000.00,Investment,"Production Program","Amended contract signed  27-JAN-16"
2016-2017,P4,"Loud Baby Productions Inc.",Halifax,"Nova Scotia",Canada,"Perfume War",English,Documentary,2017-03-30,41395.00,41395.00,"Recoupable Advance","Marketing Program",
2016-2017,P4,"Weirdos The Film Inc.",Halifax,"Nova Scotia",Canada,WEIRDOS,English,Drama,2017-03-30,738500.00,450000.00,Investment,"Production Program","Amended contract signed  15-SEP-15"
2016-2017,P4,"Dead Shack Productions Inc.",Vancouver,"British Columbia",Canada,"Dead Shack",English,Horror,2017-03-31,350000.00,250000.00,Investment,"Production Program","Amended contract signed  29-NOV-16"
2016-2017,P4,"Forlorn Hope Productions Inc.",Richmond,"British Columbia",Canada,Juggernaut,English,Mystery/Crime/Police,2017-03-31,300000.00,250000.00,Investment,"Production Program","Amended contract signed  08-MAR-16"
2016-2017,P1,"Festival de Cin�ma de la Ville de Qu�bec",Quebec,Quebec,Canada,"Festival de cin�ma de la ville de Qu�bec (6e)",,,2016-05-13,30204.00,30204.00,Contribution,"Promotion Program",
2016-2017,P1,"Short Stop Pictures IX Ltd.",Halifax,"Nova Scotia",Canada,"Short Film Face Off 2016",,,2016-05-16,37500.00,37500.00,Contribution,"Promotion Program",
2016-2017,P1,"Across Borders Media Inc.",Victoria,"British Columbia",Canada,"Story, Money, Impact:  Media that Matters ",,,2016-05-18,5000.00,5000.00,Contribution,"Promotion Program",
2016-2017,P1,"FIRST WEEKEND CLUB FILM SOCIETY","North Vancouver","British Columbia",Canada,"First Weekend Club",,,2016-05-18,118350.00,118350.00,Contribution,"Promotion Program",
2016-2017,P1,"Association des propri�taires de cin�mas du Qu�bec",Montreal,Quebec,Canada,"APCQ - Souper annuel  2016",,,2016-05-20,5000.00,5000.00,Contribution,"Promotion Program",
2016-2017,P1,"Canadian Film Institute",Ottawa,Ontario,Canada,"The Ottawa International Animation Festival",,,2016-05-24,44002.00,44002.00,Contribution,"Promotion Program",
2016-2017,P1,"Groupe �volum�dia inc.",Montreal,Quebec,Canada,"Bient�t sur nos �crans ",,,2016-05-26,10000.00,10000.00,Contribution,"Promotion Program",
2016-2017,P1,"Women In Film & Television Toronto",Toronto,Ontario,Canada,"Development Incubator Program 2016-2017",,,2016-05-26,20000.00,20000.00,Contribution,"Promotion Program",
2016-2017,P1,"Screen Nova Scotia Industry Association",Halifax,"Nova Scotia",Canada,"Screen Nova Scotia Awards Gala",,,2016-05-26,1000.00,1000.00,Contribution,"Promotion Program",
2016-2017,P1,"Association qu�b�coise de la production m�diatique ",Montreal,Quebec,Canada,"Congr�s AQPM",,,2016-05-27,7000.00,7000.00,Contribution,"Promotion Program",
2016-2017,P1,"Whistler Film Festival Society",Whistler,"British Columbia",Canada,"Whistler Film Festival+Summit, WFF Praxis Screenwriters Lab",,,2016-05-30,52853.00,52853.00,Contribution,"Promotion Program",
2016-2017,P1,"Whistler Film Festival Society",Whistler,"British Columbia",Canada,"WFF Feature Project Lab 2016",,,2016-06-07,30000.00,30000.00,Contribution,"Promotion Program",
2016-2017,P1,"Hot Docs",Toronto,Ontario,Canada,"HD Festival and Market",,,2016-06-09,350000.00,350000.00,Contribution,"Promotion Program",
2016-2017,P1,"Festival du nouveau cin�ma de Montr�al",Montreal,Quebec,Canada,"Festival du nouveau cin�ma ",,,2016-06-15,183031.00,183031.00,Contribution,"Promotion Program",
2016-2017,P1,"Les Perc�ides, Festival international de cin�ma et d'art de Perc�",Perce,Quebec,Canada,"Perc�ides Festival international de cin�ma et d`art de Perc�",,,2016-06-16,5408.00,5408.00,Contribution,"Promotion Program",
2016-2017,P1,"Edmonton International Film Festival Society",Edmonton,Alberta,Canada,"Edmonton International Film Festival",,,2016-06-16,26170.00,26170.00,Contribution,"Promotion Program",
2016-2017,P1,"Rencontres internationales du documentaire de Montr�al",Montreal,Quebec,Canada,"Rencontres internationales du documentaire de Montr�al",,,2016-06-20,90330.00,90330.00,Contribution,"Promotion Program",
2016-2017,P1,"Lowenbe Holdings Ltd.","Glen Haven","Nova Scotia",Canada,"Trans Atlantic Partners",,,2016-06-23,25000.00,25000.00,Contribution,"Promotion Program",
2016-2017,P1,"Atlantic Film Festival Association",Halifax,"Nova Scotia",Canada,"Atlantic Film Festival - Strategic Partners",,,2016-06-30,212631.00,212631.00,Contribution,"Promotion Program",
2016-2017,P2,"Female Eye Film Festival (The)",Woodbridge,Ontario,Canada,"Female Eye Film Festival ",,,2016-07-05,3000.00,3000.00,Contribution,"Promotion Program",
2016-2017,P2,"9341-9315 Qu�bec Inc.",Verdun,Quebec,Canada,"Geek Girls",English,Documentary,2016-07-06,127500.00,127500.00,Contribution,"Micro-Budget Production Program",
2016-2017,P2,"Toronto Reel Asian International Film Festival",Toronto,Ontario,Canada,"Toronto Reel Asian International Film Festival",,,2016-07-06,12978.00,12978.00,Contribution,"Promotion Program",
2016-2017,P2,"9342-2947 QU�BEC INC.","Orford ",Quebec,Canada,"Les sc�nes fortuites",French,Comedy,2016-07-12,112500.00,112500.00,Contribution,"Micro-Budget Production Program",
2016-2017,P2,"1973445 Alberta Ltd.",Edmonton,Alberta,Canada,"Abiga�lle et le date coaching",French,Comedy,2016-07-12,75000.00,75000.00,Contribution,"Micro-Budget Production Program",
2016-2017,P2,"Festival International du Film sur l'Art ",Montreal,Quebec,Canada,"Festival International du Film sur l'Art ",,,2016-07-13,34608.00,34608.00,Contribution,"Promotion Program",
2016-2017,P2,"Fondation Qu�bec cin�ma",Montreal,Quebec,Canada,"Gala du cin�ma qu�b�cois, Tourn�e & Rendez-vous du cin�ma ",,,2016-07-14,302144.00,302144.00,Contribution,"Promotion Program",
2016-2017,P2,"Carrousel international du film de Rimouski (Le)",Rimouski,Quebec,Canada,"Carrousel international du film de Rimouski",,,2016-07-14,25152.00,25152.00,Contribution,"Promotion Program",
2016-2017,P2,"eMerge Enterprises Ltd",Montreal,Quebec,Canada,3.0,English,Comedy,2016-07-15,127500.00,127500.00,Contribution,"Micro-Budget Production Program",
2016-2017,P2,"Kingston Canadian Film Festival",Kingston,Ontario,Canada,"2017 Kingston Canadian Film Festival",,,2016-07-15,3245.00,3245.00,Contribution,"Promotion Program",
2016-2017,P2,"Creative Women Workshops Association","North Vancouver","British Columbia",Canada,"Women In the Director's Chair (WIDC) 2017",,,2016-07-18,50000.00,50000.00,Contribution,"Promotion Program",
2016-2017,P2,"Prairie Cat Productions Inc.",Regina,Saskatchewan,Canada,Talent,English,Comedy,2016-07-18,127500.00,127500.00,Contribution,"Micro-Budget Production Program",
2016-2017,P2,"Cin�fest: The Sudbury Film Festival Inc.",Sudbury,Ontario,Canada,"Cinefest Sudbury International Film Festival",,,2016-07-19,59483.00,59483.00,Contribution,"Promotion Program",
2016-2017,P2,"Association des cin�mas parall�les du Qu�bec",Montreal,Quebec,Canada,"Association des cin�mas parall�les du Qu�bec R�seau Plus",,,2016-07-22,102743.00,102743.00,Contribution,"Promotion Program",
2016-2017,P2,"Banff Television Festival Foundation",Toronto,Ontario,Canada,"Banff World Media Festival 2016",,,2016-07-22,99000.00,99000.00,Contribution,"Promotion Program",
2016-2017,P2,"Interactive Ontario Industry Association",Toronto,Ontario,Canada,"Interactive Ontario Professional Development Initiatives",,,2016-07-26,20000.00,20000.00,Contribution,"Promotion Program",
2016-2017,P2,"Writers Guild Of Canada",Toronto,Ontario,Canada,"WGC Screenwriting Awards ",,,2016-07-26,1000.00,1000.00,Contribution,"Promotion Program",
2016-2017,P2,"Crazy8s Film Society",Vancouver,"British Columbia",Canada,"Crazy8s Film Event 2017",,,2016-07-28,20000.00,20000.00,Contribution,"Promotion Program",
2016-2017,P2,"9761667 CANADA INC.",Charlottetown,"Prince Edward Island",Canada,"Lovely Witches Club",English,"Science fiction/Fantasy/Tale",2016-07-29,112500.00,112500.00,Contribution,"Micro-Budget Production Program",
2016-2017,P2,"St. John's International Women's Film Festival, Inc.","St. John's",Newfoundland/Labrador,Canada,"St. John's International Women's Film Festival",,,2016-08-02,23260.00,23260.00,Contribution,"Promotion Program",
2016-2017,P2,"Ontario Media Development Corporation (OMDC) / Soci�t� de d�veloppement de l'industrie cin�matographique ontarienne",Toronto,Ontario,Canada,"In'tl Financing Forum (IFF) and Producers Lab Toronto (PLT)",,,2016-08-03,18600.00,18600.00,Contribution,"Promotion Program",
2016-2017,P2,"Festival Fantasia",Montreal,Quebec,Canada,"Festival Fantasia",,,2016-08-08,173719.00,173719.00,Contribution,"Promotion Program",
2016-2017,P2,"Firecrackers Film Incorporated",Bolton,Ontario,Canada,Firecrackers,English,Drama,2016-08-08,127500.00,127500.00,Contribution,"Micro-Budget Production Program",
2016-2017,P2,"Planet in Focus: International Environmental Film & Video Festival",Toronto,Ontario,Canada,"Planet in Focus: International Environmental Film Festival",,,2016-08-08,3000.00,3000.00,Contribution,"Promotion Program",
2016-2017,P2,"Open Roof Films Entertainment Inc.",Toronto,Ontario,Canada,"Open Roof Film Festival",,,2016-08-10,20000.00,20000.00,Contribution,"Promotion Program",
2016-2017,P2,"9342-5809 Qu�bec Inc.",Montreal,Quebec,Canada,"Les faux tatouages",French,Drama,2016-08-10,127500.00,127500.00,Contribution,"Micro-Budget Production Program",
2016-2017,P2,"Women In Film & Television Toronto",Toronto,Ontario,Canada,"WIFT-T Crystal Awards Gala Luncheon",,,2016-08-11,6000.00,6000.00,Contribution,"Promotion Program",
2016-2017,P2,"Toronto International Film Festival Inc.",Toronto,Ontario,Canada,"Toronto International Film Festival",,,2016-08-15,977710.00,977710.00,Contribution,"Promotion Program",
2016-2017,P2,"ReelWorld Film Festival Inc.",Toronto,Ontario,Canada,"Reelworld Film Festival & Impact Film Lounge",,,2016-08-15,43021.00,43021.00,Contribution,"Promotion Program",
2016-2017,P2,"Directors Guild Of Canada",Toronto,Ontario,Canada,"DGC Awards Gala",,,2016-08-16,2500.00,2500.00,Contribution,"Promotion Program",
2016-2017,P2,"The Hunting Party Inc.",St-John's,Newfoundland/Labrador,Canada,"Final Cut",English,Horror,2016-08-17,127500.00,127500.00,Contribution,"Micro-Budget Production Program",
2016-2017,P2,"Motion Picture Theatre Associations Of Canada / Associations des cin�mas du Canada",Toronto,Ontario,Canada,ShowCanada,,,2016-08-17,10000.00,10000.00,Contribution,"Promotion Program",
2016-2017,P2,"First Nation Films LTD.",Janvier,Alberta,Canada,"The Road Behind",English,Drama,2016-08-22,127500.00,127500.00,Contribution,"Micro-Budget Production Program",
2016-2017,P2,"Calgary International Film Festival Society",Calgary,Alberta,Canada,"Calgary International Film Festival + Red Carpet",,,2016-08-22,37038.00,37038.00,Contribution,"Promotion Program",
2016-2017,P2,"Road Trip Films Inc.",Vancouver,"British Columbia",Canada,"Indian Road Trip",English,Comedy,2016-08-23,127500.00,127500.00,Contribution,"Micro-Budget Production Program",
2016-2017,P2,"New Brunswick Filmmakers Co-operative Limited",Fredericton,"New Brunswick",Canada,"Silver Wave Film Festival",,,2016-08-23,3000.00,3000.00,Contribution,"Promotion Program",
2016-2017,P2,"Academy Of Canadian Cinema And Television - Acad�mie Canadienne du Cin�ma et de la T�l�vision",Toronto,Ontario,Canada,"Canadian Screen Awards (2016-2017)",,,2016-08-24,360511.00,360511.00,Contribution,"Promotion Program",
2016-2017,P2,"Gimli Film Festival Inc. ",Gimli,Manitoba,Canada,"Gimli Film Festival ",,,2016-08-24,16223.00,16223.00,Contribution,"Promotion Program",
2016-2017,P2,"Mary Goes Round Movie Inc.",Toronto,Ontario,Canada,"Mary Goes Round",English,Drama,2016-08-25,127500.00,127500.00,Contribution,"Micro-Budget Production Program",
2016-2017,P2,"In Plainview Productions Inc.",Calgary,Alberta,Canada,"In Plainview",English,Mystery/Crime/Police,2016-08-26,127500.00,127500.00,Contribution,"Micro-Budget Production Program",
2016-2017,P2,"Front des r�alisateurs ind�pendants du Canada (FRIC)",Ottawa,Ontario,Canada,"Programme de formation et d�veloppement professionnel",,,2016-08-29,20000.00,20000.00,Contribution,"Promotion Program",
2016-2017,P2,"9342-7938 Qu�bec inc.",Montreal,Quebec,Canada,"Hier encore",French,Documentary,2016-08-29,127500.00,127500.00,Contribution,"Micro-Budget Production Program",
2016-2017,P2,"Atlantic Filmmakers Cooperative Limited",Halifax,"Nova Scotia",Canada,"FILM 5 / Halifax Independent Film Festival",,,2016-08-30,25000.00,25000.00,Contribution,"Promotion Program",
2016-2017,P2,"Blac Op Films Incorporated",Dartmouth,"Nova Scotia",Canada,"Black Cop",English,Drama,2016-08-31,127500.00,127500.00,Contribution,"Micro-Budget Production Program",
2016-2017,P2,"Acad�mie canadienne du cin�ma et de la t�l�vision (section Qu�bec) Inc.",Montreal,Quebec,Canada,"Prix G�meaux 2016",,,2016-08-31,136250.00,136250.00,Contribution,"Promotion Program",
2016-2017,P2,"689473 N.B. Inc.",Fredericton,"New Brunswick",Canada,"The Capital (Formerly titled: Why Good People Do Bad Things)",English,Comedy,2016-09-01,112500.00,112500.00,Contribution,"Micro-Budget Production Program",
2016-2017,P2,"Caribbean Tales",Toronto,Ontario,Canada,"CaribbeanTales Youth Film Festival + Market Access Incubator",,,2016-09-06,5419.00,5419.00,Contribution,"Promotion Program",
2016-2017,P2,"Breaking Ice Productions Inc.",Winnipeg,Manitoba,Canada,"Breaking Ice: The Arctic Uncovered",English,Documentary,2016-09-08,127500.00,127500.00,Contribution,"Micro-Budget Production Program",
2016-2017,P2,"Western Arctic Moving Pictures",Yellowknife,"North W. Territories",Canada,"The Yellowknife International Film Festival",,,2016-09-08,5000.00,5000.00,Contribution,"Promotion Program",
2016-2017,P2,"LLI Films Ltd.",Vancouver,"British Columbia",Canada,Luk'Luk'I,English,Drama,2016-09-09,127500.00,127500.00,Contribution,"Micro-Budget Production Program",
2016-2017,P2,"Greater Vancouver International Film Festival Society",Vancouver,"British Columbia",Canada,"Vancouver International Film Festival & Red Carpet",,,2016-09-13,252172.00,252172.00,Contribution,"Promotion Program",
2016-2017,P2,"Corporation Wapikoni Mobile",Montreal,Quebec,Canada,"Projet de formation destin� aux jeunes Autochtones",,,2016-09-19,40000.00,40000.00,Contribution,"Promotion Program",
2016-2017,P2,"New Brunswick Producers Association Inc. ",Moncton,"New Brunswick",Canada,"Demo Show ",,,2016-09-20,1000.00,1000.00,Contribution,"Promotion Program",
2016-2017,P2,"Women In Film & Television Vancouver Society",Vancouver,"British Columbia",Canada,"Vancouver International Women in Film Festival + Genre Lab",,,2016-09-20,13500.00,13500.00,Contribution,"Promotion Program",
2016-2017,P2,Paraloeil,Rimouski,Quebec,Canada,"Cin�ma Paraloeil - programmation",,,2016-09-23,8140.00,8140.00,Contribution,"Promotion Program",
2016-2017,P2,"Festival international du film pour enfants de Montr�al",Montreal,Quebec,Canada,"Festival International de Film pour Enfants de Montr�al",,,2016-09-23,16223.00,16223.00,Contribution,"Promotion Program",
2016-2017,P2,"Victoria Independent Film and Video Festival",Victoria,"British Columbia",Canada,"Victoria Film Festival and Springboard",,,2016-09-28,32445.00,32445.00,Contribution,"Promotion Program",
2016-2017,P3,"Productions Sc�nat de L'Abitibi-Temiscamingue",Rouyn-Noranda,Quebec,Canada,"Festival du cin�ma international en Abitibi-T�miscamingue",,,2016-10-03,62082.00,62082.00,Contribution,"Promotion Program",
2016-2017,P3,"Pixel Qu�bec",Quebec,Quebec,Canada,"Pixel Qu�bec",,,2016-10-05,60000.00,60000.00,Contribution,"Promotion Program",
2016-2017,P3,"The Centre for Aboriginal Media (Ontario)",Toronto,Ontario,Canada,"The Centre For Aboriginal Media (ImagineNATIVE)",,,2016-10-06,16223.00,16223.00,Contribution,"Promotion Program",
2016-2017,P3,"Cin�math�que Qu�b�coise",Montreal,Quebec,Canada,"Les Sommets du cin�ma d'animation",,,2016-10-12,10000.00,10000.00,Contribution,"Promotion Program",
2016-2017,P3,Cin�franco,Toronto,Ontario,Canada,Cin�franco,,,2016-10-19,10815.00,10815.00,Contribution,"Promotion Program",
2016-2017,P3,"Yorkton Short Film and Video Festival Inc.",Yorkton,Saskatchewan,Canada,"Yorkton Film Festival",,,2016-10-19,22045.00,22045.00,Contribution,"Promotion Program",
2016-2017,P3,"Canadian Film Centre",Toronto,Ontario,Canada,"2016 Telefilm Canada Feature Comedy Exchange",,,2016-10-21,175000.00,175000.00,Contribution,"Promotion Program",
2016-2017,P3,"Meridian Artists Inc.",Toronto,Ontario,Canada,"Toronto Screenwriting Conference",,,2016-10-27,8000.00,8000.00,Contribution,"Promotion Program",
2016-2017,P3,"Canadian Media Producers Association - Association canadienne de la production m�diatique",Ottawa,Ontario,Canada,"VIFF Industry Exchange",,,2016-10-27,20000.00,20000.00,Contribution,"Promotion Program",
2016-2017,P3,"Cin�mental inc.",Winnipeg,Manitoba,Canada,Cin�mental,,,2016-11-07,9046.00,9046.00,Contribution,"Promotion Program",
2016-2017,P3,"Festival du film de l'Outaouais",Montreal,Quebec,Canada,"Festival du film de l'Outaouais",,,2016-11-07,21069.00,21069.00,Contribution,"Promotion Program",
2016-2017,P3,"Newfoundland Independent Filmmakers Co-Operative","St. John's",Newfoundland/Labrador,Canada,"Picture Start",,,2016-11-07,49000.00,49000.00,Contribution,"Promotion Program",
2016-2017,P3,"Canadian Media Producers Association - Association canadienne de la production m�diatique",Ottawa,Ontario,Canada,"Prime Time conference, Marketing Mentorship Program",,,2016-11-14,65000.00,65000.00,Contribution,"Promotion Program",
2016-2017,P3,"Serendipity Point Films Inc.",Toronto,Ontario,Canada,"Below Her Mouth",English,,2016-11-16,1000.00,1000.00,Contribution,"International Marketing Program",
2016-2017,P3,"The Island Media Arts Co-operative Association, Limited",Charlottetown,"Prince Edward Island",Canada,"PEI Screenwriters' Bootcamp ",,,2016-11-17,15000.00,15000.00,Contribution,"Promotion Program",
2016-2017,P3,"Slow Motion Food Film Fest Society",Wolfville,"Nova Scotia",Canada,"Devour! The Food Film Fest",,,2016-11-17,6000.00,6000.00,Contribution,"Promotion Program",
2016-2017,P3,"Canadian Filmmakers Festival",Toronto,Ontario,Canada,"Canadian Film Fest",,,2016-11-18,5000.00,5000.00,Contribution,"Promotion Program",
2016-2017,P3,"Highway 401 Films Inc.",Toronto,Ontario,Canada,"Wexford Plaza",English,,2016-11-21,5000.00,5000.00,Contribution,"International Marketing Program",
2016-2017,P3,"Conquering Lion Pictures Inc.",Toronto,Ontario,Canada,"Illegal (The)",English,,2016-11-24,1500.00,1500.00,Contribution,"International Marketing Program",
2016-2017,P3,"P�riph�ria Films Inc",Montreal,Quebec,Canada,PASSOVER,English,Comedy,2016-11-25,500.00,500.00,Contribution,"International Marketing Program",
2016-2017,P3,"Culture pour tous",Montreal,Quebec,Canada,"Journ�e nationale de la culture: F�te du cin�ma & musique",,,2016-11-28,15000.00,15000.00,Contribution,"Promotion Program",
2016-2017,P3,"GESTION CTVM + WEB INC",Outremont,Quebec,Canada,CTVM.info,,,2016-11-28,22000.00,22000.00,Contribution,"Promotion Program",
2016-2017,P3,"MC2 Communication M�dia inc.",Montreal,Quebec,Canada,"Living With Giants",English,Documentary,2016-11-28,1500.00,1500.00,Contribution,"International Marketing Program",
2016-2017,P3,"Midnight Lamp Films Inc.",Toronto,Ontario,Canada,"Stairs (The)",English,Documentary,2016-11-29,1000.00,1000.00,Contribution,"International Marketing Program",
2016-2017,P3,"Visions Ouest Productions",Vancouver,"British Columbia",Canada,"Rendez-vous du cin�ma qu�b�cois et francophone de Vancouver",,,2016-12-06,8132.00,8132.00,Contribution,"Promotion Program",
2016-2017,P3,"Vancouver Web Festival Presentation Society","New Westminster","British Columbia",Canada,"Vancouver Web Fest ",,,2016-12-08,5000.00,5000.00,Contribution,"Promotion Program",
2016-2017,P3,"Documentary Organization of Canada",Toronto,Ontario,Canada,"Festival Concierge",,,2016-12-09,8000.00,8000.00,Contribution,"Promotion Program",
2016-2017,P3,"Film And Video Arts Society Alberta (fava)",Edmonton,Alberta,Canada,"FAVA Fest ",,,2016-12-12,2500.00,2500.00,Contribution,"Promotion Program",
2016-2017,P3,"Film Zone Inc.",Moncton,"New Brunswick",Canada,"Festival international du cin�ma francophone en Acadie",,,2016-12-12,52808.00,52808.00,Contribution,"Promotion Program",
2016-2017,P3,"Femmes du cinema, de la television et des m�dias num�riques",Montreal,Quebec,Canada,FCTMN,,,2016-12-12,15000.00,15000.00,Contribution,"Promotion Program",
2016-2017,P3,"Women In Film and Television - Atlantic",Halifax,"Nova Scotia",Canada,"Women Making Waves",,,2016-12-12,2500.00,2500.00,Contribution,"Promotion Program",
2016-2017,P3,"Grassfire Films Inc.","New Waterford","Nova Scotia",Canada,Werewolf,English,,2016-12-13,22000.00,22000.00,Contribution,"International Marketing Program",
2016-2017,P3,"Festival de Cin�ma de la Ville de Qu�bec",Quebec,Quebec,Canada,"Quebec anglophone film tour",,,2016-12-13,15000.00,15000.00,Contribution,"Promotion Program",
2016-2017,P3,"Yukon Film Society",Whitehorse,Yukon,Canada,"Available Light Film Festival and ALFF Industry 2017",,,2016-12-13,8813.00,8813.00,Contribution,"Promotion Program",
2016-2017,P3,"ORGANISATION COMMUNICATIONS ET SOCI�T� OCS INC.",Montreal,Quebec,Canada,Cin�cole,,,2016-12-19,15000.00,15000.00,Contribution,"Promotion Program",
2016-2017,P3,"Clumsy Ophelia Productions Inc.",Toronto,Ontario,Canada,"Dim the Fluorescents",English,,2016-12-20,5000.00,5000.00,Contribution,"International Marketing Program",
2016-2017,P3,"The Charlottetown Film Society, Inc.",Charlottetown,"Prince Edward Island",Canada,"The Charlottetown Film Festival",,,2016-12-22,3500.00,3500.00,Contribution,"Promotion Program",
2016-2017,P3,"Fondation Fabienne Colas",Saint-Lambert,Quebec,Canada,"Festival International du Film Black de Montr�al",,,2016-12-22,15000.00,15000.00,Contribution,"Promotion Program",
2016-2017,P3,"Festival International du Film sur l'Art ",Montreal,Quebec,Canada,"Festival International du Film sur l'Art ",,,2016-12-22,49608.00,34608.00,Contribution,"Promotion Program","Amended contract signed  13-JUL-16"
2016-2017,P3,"Caravane Films Productions",Chicoutimi,Quebec,Canada,"Regard sur le court m�trage au Saguenay / March� du court",,,2016-12-23,37159.00,37159.00,Contribution,"Promotion Program",
2016-2017,P3,"Fondation Qu�bec cin�ma",Montreal,Quebec,Canada,"Soir�e Gala du cinema Qc et Initiatives diverses",,,2016-12-23,200000.00,200000.00,Contribution,"Promotion Program",
2016-2017,P3,"Terres en vues / Soci�t� pour la diffusion de la culture autochtone",Montreal,Quebec,Canada,"Festival du film et de la vid�o autochtone de Montr�al",,,2016-12-23,16166.00,16166.00,Contribution,"Promotion Program",
2016-2017,P4,"Prix coll�gial du cin�ma qu�b�cois",Montreal,Quebec,Canada,"Prix coll�gial du cin�ma qu�b�cois",,,2017-01-05,15000.00,15000.00,Contribution,"Promotion Program",
2016-2017,P4,"Zocha Production Inc.",Montreal,Quebec,Canada,"Nuits feront �cho (Mes)",French,Documentary,2017-01-05,5700.00,5700.00,Contribution,"International Marketing Program",
2016-2017,P4,"Holdfast Pictures Inc.",Halifax,"Nova Scotia",Canada,WEIRDOS,English,,2017-01-05,24700.00,24700.00,Contribution,"International Marketing Program",
2016-2017,P4,"Alberta Media Production Industries  Association (AMPIA)",Edmonton,Alberta,Canada,"AMPIA Professional Development Initiatives ",,,2017-01-06,20000.00,20000.00,Contribution,"Promotion Program",
2016-2017,P4,"Reel to Real: A Celebration Of Moving Images For Youth Society",Vancouver,"British Columbia",Canada,"Reel 2 Real International Film Festival for Youth",,,2017-01-06,7528.00,7528.00,Contribution,"Promotion Program",
2016-2017,P4,"Vice Productions (VIP Canada) Inc.",Toronto,Ontario,Canada,Rise,English,Documentary,2017-01-07,25000.00,25000.00,Contribution,"International Marketing Program",
2016-2017,P4,"Global Visions Festival Society",Edmonton,Alberta,Canada,Northwestfest,,,2017-01-09,5000.00,5000.00,Contribution,"Promotion Program",
2016-2017,P4,"Vues d'Afrique",Montreal,Quebec,Canada,"Festival international de cin�ma Vues d'Afrique",,,2017-01-10,17859.00,17859.00,Contribution,"Promotion Program",
2016-2017,P4,"Festival International de Musique POP Montr�al",Montreal,Quebec,Canada,"POP Montreal",,,2017-01-12,15000.00,15000.00,Contribution,"Promotion Program",
2016-2017,P4,"Northern Visions Independent Video & Film Association",Toronto,Ontario,Canada,"Images Festival",,,2017-01-12,22784.00,22784.00,Contribution,"Promotion Program",
2016-2017,P4,"1880609 Ontario Inc.",Toronto,Ontario,Canada,"5 Films About Technology",English,,2017-01-12,2200.00,2200.00,Contribution,"International Marketing Program",
2016-2017,P4,"Charles Taylor Theatre & Media Arts Association",Dartmouth,"Nova Scotia",Canada,"The Emerging Lens Independent Cultural Film Festival",,,2017-01-13,2500.00,2500.00,Contribution,"Promotion Program",
2016-2017,P4,"2033161 Ontario Limited",Toronto,Ontario,Canada,"""4K Restorations of """"Hockey Night"""" and """"Roadkill""""""",,,2017-01-13,38600.00,38600.00,Contribution,"Promotion Program",
2016-2017,P4,"Independent Web series Creators of Canada",Toronto,Ontario,Canada,"T.O. Webfest 2017",,,2017-01-16,5000.00,5000.00,Contribution,"Promotion Program",
2016-2017,P4,"Cin� Qu�bec",Boucherville,Quebec,Canada,"Cin� Qu�bec",,,2017-01-16,36048.00,36048.00,Contribution,"Promotion Program",
2016-2017,P4,"Storyline Entertainment Inc.",Toronto,Ontario,Canada,"League of Exotique Dancers",English,Documentary,2017-01-17,1500.00,1500.00,Contribution,"International Marketing Program",
2016-2017,P4,"Les Films du Tricycle Inc.","Les Bergeronnes",Quebec,Canada,"Combat au bout de la nuit",French,Documentary,2017-01-17,23700.00,23700.00,Contribution,"International Marketing Program",
2016-2017,P4,"Storyline Fx Inc.",Winnipeg,Manitoba,Canada,"Freeze Frame Int'l Film Festival For Kids of All",,,2017-01-17,9345.00,9345.00,Contribution,"Promotion Program",
2016-2017,P4,"Highway 401 Films Inc.",Toronto,Ontario,Canada,"Wexford Plaza",English,,2017-01-18,1500.00,1500.00,Contribution,"International Marketing Program",
2016-2017,P4,"The Documentary Media Society",Vancouver,"British Columbia",Canada,"DOXA Documentary Film Festival ",,,2017-01-19,10815.00,10815.00,Contribution,"Promotion Program",
2016-2017,P4,"Woods Entertainment Canada Inc.",Toronto,Ontario,Canada,"1 Night on Panther Mountain",English,Comedy,2017-01-24,1500.00,1500.00,Contribution,"International Marketing Program",
2016-2017,P4,"SC Productions Inc.",Toronto,Ontario,Canada,"Ash (The)",English,,2017-01-24,1500.00,1500.00,Contribution,"International Marketing Program",
2016-2017,P4,"Triplex Films Inc.",Montreal,Quebec,Canada,"Theater of Life",English,Documentary,2017-01-24,1000.00,1000.00,Contribution,"International Marketing Program",
2016-2017,P4,"Colonelle films inc.",Montreal,Quebec,Canada,"The Catch",English,,2017-01-26,1500.00,1500.00,Contribution,"International Marketing Program",
2016-2017,P4,"Colonelle films inc.",Montreal,Quebec,Canada,"Break The Fall",English,,2017-01-27,1500.00,1500.00,Contribution,"International Marketing Program",
2016-2017,P4,"Buck Productions Inc.",Toronto,Ontario,Canada,"Competition (The)",English,,2017-01-30,1500.00,1500.00,Contribution,"International Marketing Program",
2016-2017,P4,"Y'est o� le paradis? inc.",Montreal,Quebec,Canada,"Y'est o� le paradis ? (AKA Michel et Sylvie)",French,,2017-01-30,5000.00,5000.00,Contribution,"International Marketing Program",
2016-2017,P4,"Corporation Wapikoni Mobile",Montreal,Quebec,Canada,"My Fathers Tools (Les outils de mon p�re)",English,Documentary,2017-02-02,1500.00,1500.00,Contribution,"International Marketing Program",
2016-2017,P4,"Rezolution Pictures International Inc.",Outremont,Quebec,Canada,"Rumble: The Indians Who Rocked The World",English,Documentary,2017-02-03,24000.00,24000.00,Contribution,"International Marketing Program",
2016-2017,P4,"National Screen Institute - Canada",Winnipeg,Manitoba,Canada,"NSI Training Programs",,,2017-02-06,229500.00,229500.00,Contribution,"Promotion Program",
2016-2017,P4,"Toronto International Film Festival Inc.",Toronto,Ontario,Canada,"TIFF's Canada On Screen",,,2017-02-09,135000.00,135000.00,Contribution,"Promotion Program",
2016-2017,P4,"ON SCREEN MANITOBA INCORPORATED",Winnipeg,Manitoba,Canada,"All Access ",,,2017-02-09,17000.00,17000.00,Contribution,"Promotion Program",
2016-2017,P4,"Winnipeg Film Group Inc.",Winnipeg,Manitoba,Canada,"Gimme Some Truth",,,2017-02-13,3500.00,3500.00,Contribution,"Promotion Program",
2016-2017,P4,"Eagle Vision Inc.",Winnipeg,Manitoba,Canada,Lovesick,English,"Romantic Comedy",2017-02-21,5000.00,5000.00,Contribution,"International Marketing Program",
2016-2017,P4,"Canadian Film in the Schools",Toronto,Ontario,Canada,"Cdn Film in the Schools & National Canadian FIlm Day (NCFD)",,,2017-02-27,49113.00,49113.00,Contribution,"Promotion Program",
2016-2017,P4,"No Water Studios",Montreal,Quebec,Canada,"John's Bicycle",English,,2017-02-27,1500.00,1500.00,Contribution,"International Marketing Program",
2016-2017,P4,"Happiness Distribution Inc.",Paris,,France,"Mauvaises herbes (Les)",French,Comedy,2017-02-27,28000.00,28000.00,Contribution,"Export Assistance Program",
2016-2017,P4,"Eye Steel Film Distribution inc.",Montreal,Quebec,Canada,"Tokyo Idols",English,Documentary,2017-03-01,15700.00,15700.00,Contribution,"International Marketing Program",
2016-2017,P4,"ARP Selection",Paris,,France,1:54,French,,2017-03-02,30000.00,30000.00,Contribution,"Export Assistance Program",
2016-2017,P4,"Namaste Film Productions Inc. - The Ridge Line Film",Canmore,Alberta,Canada,"Ridge Line (The)",English,"Historical Drama",2017-03-03,1500.00,1500.00,Contribution,"International Marketing Program",
2016-2017,P4,"Caravane Films Productions",Chicoutimi,Quebec,Canada,"Session de pitch micro budget T�l�film au Festival REGARD",,,2017-03-14,25000.00,25000.00,Contribution,"Promotion Program",
2016-2017,P4,"Academy Of Canadian Cinema And Television - Acad�mie Canadienne du Cin�ma et de la T�l�vision",Toronto,Ontario,Canada,"Canadian Screen Awards Members Lounge",,,2017-03-16,37500.00,37500.00,Contribution,"Promotion Program",
2016-2017,P4,"Accompany Productions Inc.",Yellowknife,"North W. Territories",Canada,"Sun At Midnight (The)",English,Action/Adventure,2017-03-20,1500.00,1500.00,Contribution,"International Marketing Program",
2016-2017,P4,"Compass Productions Inc.",Montreal,Quebec,Canada,Calorie,English,,2017-03-21,1000.00,1000.00,Contribution,"International Marketing Program",
2016-2017,P4,"9270-5201 Qu�bec Inc.",Montreal,Quebec,Canada,Solaris,,,2017-03-22,249975.00,249975.00,Contribution,"Promotion Program",
2016-2017,P4,"Accompany Productions Inc.",Yellowknife,"North W. Territories",Canada,"Sun At Midnight (The)",English,Action/Adventure,2017-03-23,1500.00,1500.00,Contribution,"International Marketing Program",
2016-2017,P4,"Accompany Productions Inc.",Yellowknife,"North W. Territories",Canada,"Sun At Midnight (The)",English,Action/Adventure,2017-03-23,1500.00,1500.00,Contribution,"International Marketing Program",
2016-2017,P4,"Eye Steel Film Distribution inc.",Montreal,Quebec,Canada,"Let There Be Light",English,Documentary,2017-03-27,4200.00,4200.00,Contribution,"International Marketing Program",
2016-2017,P4,"9324-3160 Qu�bec Inc.",Montreal,Quebec,Canada,"Ceux qui font les r�volutions � moiti�, n'ont fait que se creuser un tombeau",French,,2017-03-27,10000.00,10000.00,Contribution,"International Marketing Program",
2016-2017,P4,"CarpeDiem Film & TV Inc.",Montreal,Quebec,Canada,"La Course des Tuques / Snowtime! 2",,,2017-03-27,215834.00,215834.00,Avance,"Production Program - Greenlight",
2016-2017,P4,"2479529 Ontario Inc.",Toronto,Ontario,Canada,"La Course des Tuques / Snowtime! 2",English,Comedy,2017-03-27,4700.00,4700.00,Contribution,"International Marketing Program",
2016-2017,P4,"9341-9315 Qu�bec Inc.",Verdun,Quebec,Canada,"Geek Girls",English,Documentary,2017-03-28,3700.00,3700.00,Contribution,"International Marketing Program",
2016-2017,P4,"Nova Scotia College of Art and Design",Halifax,"Nova Scotia",Canada,"Research Project",,,2017-03-28,10750.00,10750.00,Contribution,"Promotion Program",
2016-2017,P4,"Qu�b�cor M�dia inc.",Montreal,Quebec,Canada,"Projet �l�phant",,,2017-03-29,129375.00,129375.00,Contribution,"Promotion Program",
2016-2017,P4,"White Pine Pictures Inc.",Toronto,Ontario,Canada,"All Governments Lie: Truth, Deception and the Spirit of I.F. Stone",English,Documentary,2017-03-29,1500.00,1500.00,Contribution,"International Marketing Program",
2016-2017,P4,"White Pine Pictures Inc.",Toronto,Ontario,Canada,"All Governments Lie: Truth, Deception and the Spirit of I.F. Stone",English,Documentary,2017-03-29,1000.00,1000.00,Contribution,"International Marketing Program",
2016-2017,P4,"Christal Films Productions Inc.",Montreal,Quebec,Canada,"Hana's Suitcase",,,2017-03-30,200000.00,200000.00,Avance,"Production Program - Greenlight",
2016-2017,P4,"Bankdrama Film Ltd.",Toronto,Ontario,Canada,Stockholm,English,Mystery/Crime/Police,2017-03-31,3000000.00,3000000.00,Investissement,"Production Program",
